Workbook

Sheet Disclaimer
B3: DISCLAIMER
B5: This toolset is provided as is without any guarantees or warranty.
B6: Although we have attempted to find and correct any bugs in the
B7: package, we are not responsible for any damage or losses of any kind
B8: caused by the use or misuse of the package. We are under no
B9: obligation to provide service, corrections, or upgrades to this package.
B11: If you Agree to these conditions
B12: Click continue And then Save The Document on the main menu page
B13: This will Bypass this Disclaimer in future use
B15: BROUGHT TO YOU
B16: BY
B25: Designed By
B26: Phillip Restall

Sheet MENU
A1: 3
B3: Microstrip Calculator | I3: Impedance Stackup Calculators | P3: UNIT CONVERTER | W3: PCB-TOOL-SET
B4: Single Calculation | E4: Graph
P5: INCH | R5: = | T5: mm | W5: V2.4
W8: BROUGHT TO YOU
W9: BY
B10: Embedded Calculator | J10: 6 LAYER STACKUP | P10: MATCHED LENGTHS (basic)
B11: Single Calculation | E11: Graph | J11: 8 LAYER STACKUP
J12: 10 LAYER STACKUP
J13: 12 LAYER STACKUP
J14: 14 LAYER STACKUP
W16: Designed by
B17: Stripline Calculator | I17: Current Calculators | P17: Buried Calculators | W17: PHILLIP RESTALL
B18: Single Calculation | E18: Graph | I18: Trace | L18: Via | P18: Resistor | S18: Capacitance
S19: To Follow
B24: Asymmetric Stripline Calculator
B25: Single Calculation | E25: Graph | W25: V2.4 Updates
I26: Thermal
W28: CORRECTED CELL PROTECTION
W29: DISCLAIMER
B31: Dual Stripline Calculator
B32: Single Calculation | E32: Graph
W33: If you have any Questions
W34: Or suggestions for new Tools
W35: That are not yet in this Package
W36: Click Below to email me
B38: HELP

Sheet Help
A1: 1
A5: Controlled Impedance Calculator V2.0
A6: HELP
B8: Select the Units on each sheet you require to use.
B10: Input The figures into the Purple boxes
B11: Note that (S) only applies for Differential Impedance
B13: Results are available in 2 forms
B14: 1. Written
B15: 2. Graph
B17: To Find a value
B18: Click on the graphs bar you wish to alter.
B19: Drag it up or down to the desired value.
B20: Click on the figure you wish to change
B21: for example the height and click ok
B26: To use the graph , Input the figure you want values for
B27: (There are 10 different variations you can input)
B30: The results will be outputted as a graph
B31: So you can see the effects of your changes
B33: You can find a value in the same way as the graph bar
B35: The reference lines on the graph are the Pci and Cpci
B36: Impedance requirements and their min and max
B37: Tolerances
A39: Use this calculator as a reference only!
A40: I cannot confirm the equations this calculator uses are 100% accurate..

Sheet Microstrip Calc
A1: 2
I3: Microstrip Calculator
C4: Select Units | R4: W
D5: mm | M5: S | R5: 5 | S5: =D5 -> mm
M8: 10 | N8: =D5 -> mm | Y8: T
Y9: 0.5 | Z9: =D5 -> mm
AD14: Thou
I15: H | AD15: Microns
I16: 8.818989022 | J16: =D5 -> mm | AD16: mm
N19: Dielectric Constant = | T19: 4.2 | U19: Er
Q28: Zo [OHM] = | U28: =60/SQRT(0.475*T19+0.67)*LN((4*I16)/(0.67*(0.8*R5+Y9))) -> 90.39979399
Q29: Zdf [OHM] = | U29: =(1-0.48*EXP(-0.96*(M8/I16)))*2*U28 -> 151.5793998
AF36: Designed
AF37: By

Sheet Microstrip Graph
A1: 1
N2: 60 | O2: 80 | P2: 100 | Q2: 58.5 | R2: 65 | S2: 71.5
N3: 60 | O3: 80 | P3: 100 | Q3: 58.5 | R3: 65 | S3: 71.5
N4: 60 | O4: 80 | P4: 100 | Q4: 58.5 | R4: 65 | S4: 71.5
E5: MICROSTRIP GRAPH | N5: 60 | O5: 80 | P5: 100 | Q5: 58.5 | R5: 65 | S5: 71.5
N6: 60 | O6: 80 | P6: 100 | Q6: 58.5 | R6: 65 | S6: 71.5
N7: 60 | O7: 80 | P7: 100 | Q7: 58.5 | R7: 65 | S7: 71.5
N8: 60 | O8: 80 | P8: 100 | Q8: 58.5 | R8: 65 | S8: 71.5
C9: Height | D9: Width | E9: Thickness | F9: ER | H9: Zo | J9: Space | K9: Zdf | N9: 60 | O9: 80 | P9: 100 | Q9: 58.5 | R9: 65 | S9: 71.5
B10: 1 | C10: 15 | D10: 6 | E10: 0.5 | F10: 4.2 | H10: =60/SQRT(0.475*F10+0.67)*LN((4*C10)/(0.67*(0.8*D10+E10))) -> 103.9073254 | J10: 15 | K10: =(1-0.48*EXP(-0.96*(J10/C10)))*2*H10 -> 169.6206901 | N10: 60 | O10: 80 | P10: 100 | Q10: 58.5 | R10: 65 | S10: 71.5
B11: 2 | C11: 14 | D11: 6 | E11: 0.5 | F11: 4.2 | H11: 101.3715728 | J11: 14 | K11: 165.4812698 | N11: 60 | O11: 80 | P11: 100 | Q11: 58.5 | R11: 65 | S11: 71.5
B12: 3 | C12: 13 | D12: 6 | E12: 0.5 | F12: 4.2 | H12: 98.64782077 | J12: 13 | K12: 161.0349547
B13: 4 | C13: 12 | D13: 6 | E13: 0.5 | F13: 4.2 | H13: 95.70594442 | J13: 12 | K13: 156.2325686
B14: 5 | C14: 11 | D14: 6 | E14: 0.5 | F14: 4.2 | H14: 92.50794276 | J14: 11 | K14: 151.0120777
B15: 6 | C15: 10 | D15: 6 | E15: 0.5 | F15: 4.2 | H15: 89.00492828 | J15: 10 | K15: 145.2936769
B16: 7 | C16: 9 | D16: 6 | E16: 0.5 | F16: 4.2 | H16: 85.13252542 | J16: 9 | K16: 138.972278
B17: 8 | C17: 8 | D17: 6 | E17: 0.5 | F17: 4.2 | H17: 80.80354734 | J17: 8 | K17: 131.9055554
B18: 9 | C18: 7 | D18: 6 | E18: 0.5 | F18: 4.2 | H18: 75.89575677 | J18: 7 | K18: 123.893966
B19: 10 | C19: 6 | D19: 6 | E19: 0.5 | F19: 4.2 | H19: 70.23012835 | J19: 6 | K19: 114.6452648

Sheet Emb. Microstrip Calc
A1: 1
B3: Embedded Microstrip Calculator
E4: Select Units
F5: Thou
AA9: Eref | AB9: =V21*(1-(EXP((-1.55*E11)/K20))) -> 3.848278453 | AF9: Thou
E10: H2 | T10: W | AF10: Microns
E11: 8 | F11: =F5 -> Thou | O11: S | T11: 10 | U11: =F5 -> Thou | AF11: mm
O14: 15 | P14: =F5 -> Thou | AA14: T
AA15: 0.77 | AB15: =F5 -> Thou
K19: H
K20: 5 | L20: =F5 -> Thou
P21: Dielectric Constant = | V21: 4.2 | W21: Er
S30: Zo [OHM] = | W30: =(60/SQRT(AB9))*LN((5.98*K20)/(0.8*T11+AA15)) -> 37.51398781
S31: Zdf [OHM] = | W31: =(1-0.48*EXP(-0.96*(O14/E11)))*2*W30 -> 69.07499596
AI37: Designed
AI38: By

Sheet Emb. Microstrip Graph
A1: 2
O2: 60 | P2: 80 | Q2: 100 | R2: 58.5 | S2: 65 | T2: 71.5
O3: 60 | P3: 80 | Q3: 100 | R3: 58.5 | S3: 65 | T3: 71.5
O4: 60 | P4: 80 | Q4: 100 | R4: 58.5 | S4: 65 | T4: 71.5
O5: 60 | P5: 80 | Q5: 100 | R5: 58.5 | S5: 65 | T5: 71.5
D6: Embedded Microstrip GRAPH | O6: 60 | P6: 80 | Q6: 100 | R6: 58.5 | S6: 65 | T6: 71.5
O7: 60 | P7: 80 | Q7: 100 | R7: 58.5 | S7: 65 | T7: 71.5
C8: Height | D8: Height2 | E8: Width | F8: Thickness | G8: ER | I8: Zo | K8: Space | L8: Zdf | O8: 60 | P8: 80 | Q8: 100 | R8: 58.5 | S8: 65 | T8: 71.5
B9: 1 | C9: 4 | D9: 12 | E9: 6 | F9: 0.5 | G9: 4.2 | I9: =(60/SQRT(N9))*LN((5.98*C9)/(0.8*E9+F9)) -> 44.3862722 | K9: 15 | L9: =(1-0.48*EXP(-0.96*(K9/D9)))*2*I9 -> 75.93841166 | N9: =G9*(1-(EXP((-1.55*D9)/G9))) -> 4.149887605 | O9: 60 | P9: 80 | Q9: 100 | R9: 58.5 | S9: 65 | T9: 71.5
B10: 2 | C10: 4 | D10: 12 | E10: 6 | F10: 0.5 | G10: 4.2 | I10: 44.3862722 | K10: 14 | L10: 74.86949438 | N10: 4.149887605 | O10: 60 | P10: 80 | Q10: 100 | R10: 58.5 | S10: 65 | T10: 71.5
B11: 3 | C11: 4 | D11: 12 | E11: 6 | F11: 0.5 | G11: 4.2 | I11: 44.3862722 | K11: 13 | L11: 73.71155011 | N11: 4.149887605 | O11: 60 | P11: 80 | Q11: 100 | R11: 58.5 | S11: 65 | T11: 71.5
B12: 4 | C12: 4 | D12: 12 | E12: 6 | F12: 0.5 | G12: 4.2 | I12: 44.3862722 | K12: 12 | L12: 72.45716406 | N12: 4.149887605
B13: 5 | C13: 4 | D13: 12 | E13: 6 | F13: 0.5 | G13: 4.2 | I13: 44.3862722 | K13: 11 | L13: 71.09830387 | N13: 4.149887605
B14: 6 | C14: 4 | D14: 12 | E14: 6 | F14: 0.5 | G14: 4.2 | I14: 44.3862722 | K14: 10 | L14: 69.6262682 | N14: 4.149887605
B15: 7 | C15: 4 | D15: 12 | E15: 6 | F15: 0.5 | G15: 4.2 | I15: 44.3862722 | K15: 9 | L15: 68.031631 | N15: 4.149887605
B16: 8 | C16: 4 | D16: 12 | E16: 6 | F16: 0.5 | G16: 4.2 | I16: 44.3862722 | K16: 8 | L16: 66.30418114 | N16: 4.149887605
B17: 9 | C17: 4 | D17: 12 | E17: 6 | F17: 0.5 | G17: 4.2 | I17: 44.3862722 | K17: 7 | L17: 64.43285705 | N17: 4.149887605
B18: 10 | C18: 4 | D18: 12 | E18: 6 | F18: 0.5 | G18: 4.2 | I18: 44.3862722 | K18: 6 | L18: 62.40567587 | N18: 4.149887605

Sheet Stripline Calc
A1: 2
K3: Stripline Calculator
E4: Select Units
F5: Thou
E11: H2 | T11: W
E12: =(2*K21+AA16) -> 9 | F12: =F5 -> Thou | O12: S | T12: 6 | U12: =F5 -> Thou
O15: 15 | P15: =F5 -> Thou | AA15: T
AA16: 1 | AB16: =F5 -> Thou
K20: H | AF20: Thou
K21: 4 | L21: =F5 -> Thou | AF21: Microns
P22: Dielectric Constant = | V22: 4.2 | W22: Er | AF22: mm
S31: Zo [OHM] = | W31: =60/SQRT(V22)*LN((4*E12)/(0.67*PI()*(0.8*T12+AA16))) -> 31.66040492
S32: Zdf [OHM] = | W32: =(1-0.347*EXP(-2.9*(O15/E12)))*2*W31 -> 63.14591141
AI38: Designed
AI39: By

Sheet Stripline Graph
A1: 1
O2: 60 | P2: 80 | Q2: 100 | R2: 58.5 | S2: 65 | T2: 71.5
O3: 60 | P3: 80 | Q3: 100 | R3: 58.5 | S3: 65 | T3: 71.5
O4: 60 | P4: 80 | Q4: 100 | R4: 58.5 | S4: 65 | T4: 71.5
F5: STRIPLINE GRAPH | O5: 60 | P5: 80 | Q5: 100 | R5: 58.5 | S5: 65 | T5: 71.5
O6: 60 | P6: 80 | Q6: 100 | R6: 58.5 | S6: 65 | T6: 71.5
O7: 60 | P7: 80 | Q7: 100 | R7: 58.5 | S7: 65 | T7: 71.5
C8: Height | D8: Height2 | E8: Width | F8: Thickness | G8: ER | I8: Zo | K8: Space | L8: Zdf | O8: 60 | P8: 80 | Q8: 100 | R8: 58.5 | S8: 65 | T8: 71.5
B9: 1 | C9: 12 | D9: =2*C9+F9 -> 24.5 | E9: 6 | F9: 0.5 | G9: 4.2 | I9: =60/SQRT(G9)*LN((4*D9)/(0.67*PI()*(0.8*E9+F9))) -> 63.61916989 | K9: 15 | L9: =(1-0.347*EXP(-2.9*(K9/D9)))*2*I9 -> 119.7591736 | O9: 60 | P9: 80 | Q9: 100 | R9: 58.5 | S9: 65 | T9: 71.5
B10: 2 | C10: 8 | D10: 16.5 | E10: 6 | F10: 0.5 | G10: 4.2 | I10: 52.04559804 | K10: 14 | L10: 101.0071856 | O10: 60 | P10: 80 | Q10: 100 | R10: 58.5 | S10: 65 | T10: 71.5
B11: 3 | C11: 8 | D11: 16.5 | E11: 6 | F11: 0.5 | G11: 4.2 | I11: 52.04559804 | K11: 13 | L11: 100.4145961 | O11: 60 | P11: 80 | Q11: 100 | R11: 58.5 | S11: 65 | T11: 71.5
B12: 4 | C12: 8 | D12: 16.5 | E12: 6 | F12: 0.5 | G12: 4.2 | I12: 52.04559804 | K12: 12 | L12: 99.70814098
B13: 5 | C13: 8 | D13: 16.5 | E13: 6 | F13: 0.5 | G13: 4.2 | I13: 52.04559804 | K13: 11 | L13: 98.86594124
B14: 6 | C14: 8 | D14: 16.5 | E14: 6 | F14: 0.5 | G14: 4.2 | I14: 52.04559804 | K14: 10 | L14: 97.86191366
B15: 7 | C15: 8 | D15: 16.5 | E15: 6 | F15: 0.5 | G15: 4.2 | I15: 52.04559804 | K15: 9 | L15: 96.66496316
B16: 8 | C16: 8 | D16: 16.5 | E16: 6 | F16: 0.5 | G16: 4.2 | I16: 52.04559804 | K16: 8 | L16: 95.2380198
B17: 9 | C17: 8 | D17: 16.5 | E17: 6 | F17: 0.5 | G17: 4.2 | I17: 52.04559804 | K17: 7 | L17: 93.53689068
B18: 10 | C18: 8 | D18: 16.5 | E18: 6 | F18: 0.5 | G18: 4.2 | I18: 52.04559804 | K18: 6 | L18: 91.50889126

Sheet Asymetric Stripline Calc
A1: 3
F3: Asymetric Stripline Calc
D4: Select Units
F5: Thou
K11: H2 | T11: W
K12: 10.7 | L12: =F5 -> Thou | O12: S | T12: 5 | U12: =F5 -> Thou
O15: 15 | P15: =F5 -> Thou | AA15: T
AA17: 0.7 | AB17: =F5 -> Thou
K21: H | AG21: Thou
K22: 8.5 | L22: =F5 -> Thou | AG22: Microns
P23: Dielectric Constant = | V23: 4.2 | W23: Er | AG23: mm
S32: Zo [OHM] = | W32: =(80/SQRT(V23))*LN((1.9*(2*K12+AA17))/(0.8*T12+AA17))*(1-(K12/(4*K22))) -> 58.58149878
S33: Zdf [OHM] = | W33: =(1-0.347*EXP(-2.9*(O15/(K12+K22+AA17))))*2*W32 -> 112.5944015
AI38: Designed
AI39: By

Sheet Asymetric Stripline Graph
A1: 1
O2: 60 | P2: 80 | Q2: 100 | R2: 58.5 | S2: 65 | T2: 71.5
O3: 60 | P3: 80 | Q3: 100 | R3: 58.5 | S3: 65 | T3: 71.5
O4: 60 | P4: 80 | Q4: 100 | R4: 58.5 | S4: 65 | T4: 71.5
O5: 60 | P5: 80 | Q5: 100 | R5: 58.5 | S5: 65 | T5: 71.5
F6: Asymetric Stripline Graph | O6: 60 | P6: 80 | Q6: 100 | R6: 58.5 | S6: 65 | T6: 71.5
O7: 60 | P7: 80 | Q7: 100 | R7: 58.5 | S7: 65 | T7: 71.5
C8: Height | D8: Height2 | E8: Width | F8: Thickness | G8: ER | I8: Zo | K8: Space | L8: Zdf | O8: 60 | P8: 80 | Q8: 100 | R8: 58.5 | S8: 65 | T8: 71.5
B9: 1 | C9: 8 | D9: 6 | E9: 6 | F9: 0.5 | G9: 4.2 | I9: =(80/SQRT(G9))*LN((1.9*(2*D9+F9))/(0.8*E9+F9))*(1-(D9/(4*C9))) -> 47.57118648 | K9: 6 | L9: =(1-0.347*EXP(-2.9*(K9/(D9+C9+F9))))*2*I9 -> 85.19862574 | O9: 60 | P9: 80 | Q9: 100 | R9: 58.5 | S9: 65 | T9: 71.5
B10: 2 | C10: 8 | D10: 6 | E10: 6 | F10: 0.5 | G10: 4.2 | I10: 47.57118648 | K10: 6 | L10: 85.19862574 | O10: 60 | P10: 80 | Q10: 100 | R10: 58.5 | S10: 65 | T10: 71.5
B11: 3 | C11: 8 | D11: 6 | E11: 6 | F11: 0.5 | G11: 4.2 | I11: 47.57118648 | K11: 6 | L11: 85.19862574 | O11: 60 | P11: 80 | Q11: 100 | R11: 58.5 | S11: 65 | T11: 71.5
B12: 4 | C12: 8 | D12: 6 | E12: 6 | F12: 0.5 | G12: 4.2 | I12: 47.57118648 | K12: 6 | L12: 85.19862574
B13: 5 | C13: 8 | D13: 6 | E13: 6 | F13: 0.5 | G13: 4.2 | I13: 47.57118648 | K13: 6 | L13: 85.19862574
B14: 6 | C14: 8 | D14: 6 | E14: 6 | F14: 0.5 | G14: 4.2 | I14: 47.57118648 | K14: 6 | L14: 85.19862574
B15: 7 | C15: 8 | D15: 6 | E15: 6 | F15: 0.5 | G15: 4.2 | I15: 47.57118648 | K15: 6 | L15: 85.19862574
B16: 8 | C16: 8 | D16: 6 | E16: 6 | F16: 0.5 | G16: 4.2 | I16: 47.57118648 | K16: 6 | L16: 85.19862574
B17: 9 | C17: 8 | D17: 6 | E17: 6 | F17: 0.5 | G17: 4.2 | I17: 47.57118648 | K17: 6 | L17: 85.19862574
B18: 10 | C18: 8 | D18: 6 | E18: 6 | F18: 0.5 | G18: 4.2 | I18: 47.57118648 | K18: 6 | L18: 85.19862574

Sheet Dual Stripline Calc
A1: 3
C3: Dual Stripline Calc
B4: Select Units
C5: Thou
G11: W | Q11: H2
G12: 6 | K12: =C5 -> Thou | Q12: =K30 -> 6 | R12: =C5 -> Thou
K21: C | AK21: Thou
K22: 8 | L22: =C5 -> Thou | AK22: Microns
Q23: T | AK23: mm
Q25: 1 | R25: =C5 -> Thou
K29: H
K30: 6 | L30: =C5 -> Thou
Q31: Dielectric Constant = | W31: 4.2 | X31: Er
Y38: Zo [OHM] = | AD38: =(80/SQRT(W31))*LN((1.9*(2*K30+Q25))/(0.8*G12+Q25))*(1-(K30/(4*(K30+K22+Q25)))) -> 50.90493058
AL44: Designed
AL45: By

Sheet Dual Stripline Graph
A1: 1
U2: 60 | V2: 80 | W2: 100 | X2: 58.5 | Y2: 65 | Z2: 71.5
U3: 60 | V3: 80 | W3: 100 | X3: 58.5 | Y3: 65 | Z3: 71.5
U4: 60 | V4: 80 | W4: 100 | X4: 58.5 | Y4: 65 | Z4: 71.5
D5: Asymetric Stripline Graph | U5: 60 | V5: 80 | W5: 100 | X5: 58.5 | Y5: 65 | Z5: 71.5
U6: 60 | V6: 80 | W6: 100 | X6: 58.5 | Y6: 65 | Z6: 71.5
U7: 60 | V7: 80 | W7: 100 | X7: 58.5 | Y7: 65 | Z7: 71.5
C8: Height | D8: HeightC | E8: Width | F8: Thickness | G8: ER | I8: Zo | U8: 60 | V8: 80 | W8: 100 | X8: 58.5 | Y8: 65 | Z8: 71.5
B9: 1 | C9: 8 | D9: 6 | E9: 6 | F9: 0.5 | G9: 4.2 | I9: =(80/SQRT(G9))*LN((1.9*(2*C9+F9))/(0.8*E9+F9))*(1-(C9/(4*(C9+D9+F9)))) -> 59.81619471 | U9: 60 | V9: 80 | W9: 100 | X9: 58.5 | Y9: 65 | Z9: 71.5
B10: 2 | C10: 8 | D10: 6 | E10: 6 | F10: 0.5 | G10: 4.2 | I10: 59.81619471 | U10: 60 | V10: 80 | W10: 100 | X10: 58.5 | Y10: 65 | Z10: 71.5
B11: 3 | C11: 8 | D11: 6 | E11: 6 | F11: 0.5 | G11: 4.2 | I11: 59.81619471 | U11: 60 | V11: 80 | W11: 100 | X11: 58.5 | Y11: 65 | Z11: 71.5
B12: 4 | C12: 8 | D12: 6 | E12: 6 | F12: 0.5 | G12: 4.2 | I12: 59.81619471
B13: 5 | C13: 8 | D13: 6 | E13: 6 | F13: 0.5 | G13: 4.2 | I13: 59.81619471
B14: 6 | C14: 8 | D14: 6 | E14: 6 | F14: 0.5 | G14: 4.2 | I14: 59.81619471
B15: 7 | C15: 8 | D15: 6 | E15: 6 | F15: 0.5 | G15: 4.2 | I15: 59.81619471
B16: 8 | C16: 8 | D16: 6 | E16: 6 | F16: 0.5 | G16: 4.2 | I16: 59.81619471
B17: 9 | C17: 8 | D17: 6 | E17: 6 | F17: 0.5 | G17: 4.2 | I17: 59.81619471
B18: 10 | C18: 8 | D18: 6 | E18: 6 | F18: 0.5 | G18: 4.2 | I18: 59.81619471

Sheet 6 layer pcb
A1: 1
O2: PLANE | P2: Layer 1
O3: TRACK | P3: Layer 2
P4: Layer 3
P5: Layer 4
P6: Layer 5
F7: PCB No. | P7: Layer 6
F8: PCB Name | P8: Layer 7
B9: 6 LAYER PCB STACKUP | P9: Layer 8
E10: Thickness | F10: Ref. Upper | G10: Ref. Lower | H10: H1a | I10: h2 | J10: H1 | K10: H | L10: ha | M10: Impedance Zo | P10: Layer 9 | S10: Trace Width
P11: Layer 10
P12: Layer 11
B13: Layer 1 | C13: TRACK | E13: 1 | G13: Layer 2 | K13: =IF(G13="layer 2",E14,IF(G13="layer 3",E14+E15+E16,)) -> 5 | M13: =IF(C13="plane",O2,60/SQRT(0.475*C42+0.67)*LN((4*K13)/(0.67*(0.8*S13+E13)))) -> 65.67071795 | P13: Layer 12 | S13: 5
E14: 5 | P14: Layer 13
B15: Layer 2 | C15: PLANE | E15: 1 | H15: =IF(K15>J15,J15,K15) -> 0 | I15: =K15+E15+E14+E13 -> 7 | J15: =E14 -> 5 | K15: =IF(G15="layer 3",E16,IF(G15="layer 6",E16+E17+E18+E19+E20+E21+E22+E23+E24+E25+E26+E27+E28+E29+E30+E31+E32+E33+E34+E35+E36+E37+E38,)) -> 0 | L15: =IF(K15<J15,J15,K15) -> 5 | M15: =IF(C15="plane",O2,IF(F15="",(60/SQRT(N15))*LN((5.98*K15)/(0.8*S15+E15)),IF(F15="layer 1",(80/SQRT(C42))*LN((1.9*(2*E14+E15))/(0.8*S15+E15))*(1-(H15/(4*L15))),))) -> PLANE | N15: =C42*(1-(EXP((-1.55*I15)/K15))) ->  | P15: Layer 14 | S15: 5
E16: 5 | W16: PCB SIZE REQUIRED
B17: Layer 3 | C17: TRACK | E17: 1 | F17: Layer 2 | G17: Layer 5 | H17: =IF(K17>J17,J17,K17) -> 5 | I17: =K17+E17+E16+E15+E14+E13 -> 24 | J17: =IF(F17="layer 2",E16,IF(F17="layer 1",E14+E15+E16,)) -> 5 | K17: =IF(G17="layer 5",E18+E19+E20+E21+E22+E23+E24+E25+E26+E27+E28+E29+E30+E31+E32+E33+E34+E35+E36,IF(G17="layer 6",E18+E19+E20+E21+E22+E23+E24+E25+E26+E27+E28+E29+E30+E31+E32+E33+E34+E35+E36+E37+E38,)) -> 11 | L17: =IF(K17<J17,J17,K17) -> 11 | M17: =IF(C17="plane",O2,IF(F17="",(60/SQRT(N17))*LN((5.98*K17)/(0.8*S17+E17)),IF(F17="Layer 1",(80/SQRT(C42))*LN((1.9*(2*H17+E17))/(0.8*S17+E17))*(1-(H17/(4*L17))),IF(F17="Layer 2",(80/SQRT(C42))*LN((1.9*(2*H17+E17))/(0.8*S17+E17))*(1-(H17/(4*L17))),)))) -> 49.48890286 | N17: =C42*(1-(EXP((-1.55*I17)/K17))) -> 4.057260453 | S17: 5 | W17: PCB | X17: 1.6
E18: 0
B19: Layer 0 | C19: TRACK | E19: 0 | H19: =IF(K19>J19,J19,K19) -> 0 | I19: =K19+E19+E18+E17+E16+E15+E14+E13 -> 13 | J19: =IF(F19="layer 3",E18,IF(F19="layer 2",E18+E17+E16,IF(F19="layer 1",E18+E17+E16+E14,))) -> 0 | K19: =IF(G19="layer 5",E20,IF(G19="layer 6",E20+E21+E22,IF(G19="layer 7",E20+E21+E22+E23+E24,IF(G19="layer 12",E20+E21+E22+E23+E24+E25+E26+E27+E28+E29+E30+E31+E32+E33+E34,IF(G19="layer 13",E20+E21+E22+E23+E24+E25+E26+E27+E28+E29+E30+E31+E32+E33+E34+E35+E36,IF(G19="layer 14",E20+E21+E22+E23+E24+E25+E26+E27+E28+E29+E30+E31+E32+E33+E34+E35+E36+E37+E38,)))))) -> 0 | L19: =IF(K19<J19,J19,K19) -> 0 | M19: =IF(C19="plane",O2,IF(F19="",(60/SQRT(N19))*LN((5.98*K19)/(0.8*S19+E19)),IF(F19="Layer 1",(80/SQRT(C42))*LN((1.9*(2*H19+E19))/(0.8*S19+E19))*(1-(H19/(4*L19))),IF(F19="Layer 2",(80/SQRT(C42))*LN((1.9*(2*H19+E19))/(0.8*S19+E19))*(1-(H19/(4*L19))),IF(F19="Layer 3",(80/SQRT(C42))*LN((1.9*(2*H19+E19))/(0.8*S19+E19))*(1-(H19/(4*L19))),))))) ->  | N19: =C42*(1-(EXP((-1.55*I19)/K19))) ->  | S19: 5
E20: 0
B21: Layer 5 | C21: PLANE | E21: 0 | H21: =IF(K21>J21,J21,K21) -> 0 | I21: =K21+E21+E20+E19+E18+E17+E16+E15+E14+E13 -> 13 | J21: =IF(F21="layer 4",E20,IF(F21="layer 3",E20+E19+E18,IF(F21="layer 2",E20+E19+E18+E17+E16,IF(F21="layer 1",E20+E19+E18+E17+E16+E15+E14,)))) -> 0 | K21: =IF(G21="layer 6",E22,IF(G21="layer 7",E22+E23+E24,IF(G21="layer 11",E22+E23+E24+E25+E26+E27+E30+E31+E32,IF(G21="layer 12",E22+E23+E24+E25+E26+E27+E28+E29+E30+E31+E32+E33+E34,IF(G21="layer 13",E22+E23+E24+E25+E26+E27+E28+E29+E30+E31+E32+E33+E34+E35+E36,IF(G21="layer 14",E22+E23+E24+E25+E26+E27+E28+E29+E30+E31+E32+E33+E34+E35+E36+E37+E38,)))))) -> 0 | L21: =IF(K21<J21,J21,K21) -> 0 | M21: =IF(C21="plane",O2,IF(F21="",(60/SQRT(N21))*LN((5.98*K21)/(0.8*S21+E21)),IF(F21="Layer 1",(80/SQRT(C42))*LN((1.9*(2*H21+E21))/(0.8*S21+E21))*(1-(H21/(4*L21))),IF(F21="Layer 2",(80/SQRT(C42))*LN((1.9*(2*H21+E21))/(0.8*S21+E21))*(1-(H21/(4*L21))),IF(F21="Layer 3",(80/SQRT(C42))*LN((1.9*(2*H21+E21))/(0.8*S21+E21))*(1-(H21/(4*L21))),IF(F21="Layer 4",(80/SQRT(C42))*LN((1.9*(2*H21+E21))/(0.8*S21+E21))*(1-(H21/(4*L21))),)))))) -> PLANE | N21: =C42*(1-(EXP((-1.55*I21)/K21))) ->  | S21: 5
E22: 0
B23: Layer 6 | C23: TRACK | E23: 0 | H23: =IF(K23>J23,J23,K23) -> 0 | I23: =K23+E23+E22+E21+E20+E19+E18+E17+E16+E15+E14+E13 -> 13 | J23: =IF(F23="layer 5",E22,IF(F23="layer 4",E22+E21+E20,IF(F23="layer 3",E22+E21+E20+E19+E18,IF(F23="layer 2",E22+E21+E20+E19+E18+E17+E16,IF(F23="layer 1",E22+E21+E20+E19+E18+E17+E16+E15+E14,))))) -> 0 | K23: =IF(G23="layer 7",E24,IF(G23="layer 10",E24+E25+E26+E27+E28+E29+E30,IF(G23="layer11",E24+E25+E26+E27+E28+E29+E32,IF(G23="layer 12",E24+E25+E26+E27+E28+E29+E32+E33+E34,IF(G23="layer 13",E24+E25+E26+E27+E28+E29+E32+E33+E34+E35+E36,IF(G23="layer 14",E24+E25+E26+E27+E28+E29+E30+E31+E32+E33+E34+E35+E36+E37+E38,)))))) -> 0 | L23: =IF(K23<J23,J23,K23) -> 0 | M23: =IF(C23="plane",O2,IF(F23="",(60/SQRT(N23))*LN((5.98*K23)/(0.8*S23+E23)),IF(F23="Layer 1",(80/SQRT(C42))*LN((1.9*(2*H23+E23))/(0.8*S23+E23))*(1-(H23/(4*L23))),IF(F23="Layer 2",(80/SQRT(C42))*LN((1.9*(2*H23+E23))/(0.8*S23+E23))*(1-(H23/(4*L23))),IF(F23="Layer 3",(80/SQRT(C42))*LN((1.9*(2*H23+E23))/(0.8*S23+E23))*(1-(H23/(4*L23))),IF(F23="Layer 4",(80/SQRT(C42))*LN((1.9*(2*H23+E23))/(0.8*S23+E23))*(1-(H23/(4*L23))),IF(F23="Layer 5",(80/SQRT(C42))*LN((1.9*(2*J23+E23))/(0.8*S23+E23))*(1-(H23/(4*L23))),))))))) ->  | N23: =C42*(1-(EXP((-1.55*I23)/K23))) ->  | S23: 5
E24: 0
B25: Layer 7 | C25: TRACK | E25: 0 | H25: =IF(K25>J25,J25,K25) -> 0 | J25: =IF(F25="layer 6",E24,IF(F23="layer 5",E24+E23+E22,IF(F25="layer 4",E24+E23+E22,IF(F25="layer 3",E24+E23+E22+E21+E20,IF(F25="layer 2",E24+E23+E22+E21+E20+E19+E18,IF(F25="layer 1",E24+E23+E22+E21+E20+E19+E18+E17+E16,)))))) -> 0 | K25: =IF(G25="layer 9",E26+E27+E28,IF(G25="layer 10",E26+E27+E28+E29+E30,IF(G25="layer 11",E26+E27+E28+E29+E30+E31+E32,IF(G25="layer 12",E26+E27+E28+E29+E30+E31+E32+E33+E34,IF(G25="layer 13",E26+E27+E28+E29+E30+E31+E32+E33+E34+E35+E36,IF(G25="layer 14",E26+E27+E28+E29+E30+E31+E32+E33+E34+E35+E36+E37+E38,)))))) -> 0 | L25: =IF(K25<J25,J25,K25) -> 0 | M25: =IF(C25="plane",O2,(80/SQRT(C42))*LN((1.9*(2*H25+E25))/(0.8*S25+E25))*(1-(H25/(4*L25)))) ->  | S25: 5
C26: Middle | E26: 5 | W26: TOLERENCE | X26: 5
B27: Layer 8 | C27: =C25 -> TRACK | E27: =E25 -> 0 | M27: =M25 ->  | S27: 5
E28: =E24 -> 0
B29: Layer 9 | C29: =C23 -> TRACK | E29: =E23 -> 0 | M29: =M23 ->  | S29: =S23 -> 5
E30: =E20 -> 0
B31: Layer 10 | C31: =C21 -> PLANE | E31: =E21 -> 0 | M31: =M21 -> PLANE | S31: =S21 -> 5
E32: =E20 -> 0 | W32: PCB SIZE REQUIRED
B33: Layer 11 | C33: =C19 -> TRACK | E33: =E19 -> 0 | M33: =M19 ->  | S33: =S19 -> 5 | W33: PCB | X33: 1.6
E34: =E18 -> 0 | W34: TOLERENCE | X34: 5
B35: Layer 4 | C35: =C17 -> TRACK | E35: =E17 -> 1 | M35: =M17 -> 49.48890286 | S35: =S17 -> 5 | W35: TOTAL
E36: =E16 -> 5 | W36: MAX. | X36: =X17/100*X26+X17 -> 1.68
B37: Layer 5 | C37: =C15 -> PLANE | E37: =E15 -> 1 | M37: =M15 -> PLANE | S37: =S15 -> 5 | W37: MIN. | X37: =X17-(X17/100*X26) -> 1.52
E38: =E14 -> 5
B39: Layer 6 | C39: =C13 -> TRACK | E39: =E13 -> 1 | M39: =M13 -> 65.67071795 | S39: =S13 -> 5
W41: TOTAL
B42: ER= | C42: 4.2 | W42: =E13+E14+E16+E15+E17+E18+E19+E20+E21+E22+E23+E24+E25+E26+E27+E28+E29+E30+E31+E32+E33+E34+E35+E36+E37+E38+E39 -> 31

Sheet 8 layer pcb
A1: 1
O2: PLANE | P2: Layer 1
O3: TRACK | P3: Layer 2
P4: Layer 3
P5: Layer 4
P6: Layer 5
F7: PCB No. | P7: Layer 6
F8: PCB Name | P8: Layer 7
B9: 8 LAYER PCB STACKUP | P9: Layer 8
E10: Thickness | F10: Ref. Upper | G10: Ref. Lower | H10: H1a | I10: h2 | J10: H1 | K10: H | L10: ha | M10: Impedance Zo | P10: Layer 9 | S10: Trace Width
P11: Layer 10
P12: Layer 11
B13: Layer 1 | C13: TRACK | E13: 0.5 | G13: Layer 2 | K13: =IF(G13="layer 2",E14,IF(G13="layer 3",E14+E15+E16,IF(G13="layer 4",E14+E15+E16+E17+E18,))) -> 8 | M13: =IF(C13="plane",O2,60/SQRT(0.475*C42+0.67)*LN((4*K13)/(0.67*(0.8*S13+E13)))) -> 86.81755594 | P13: Layer 12 | S13: 5
E14: 8 | P14: Layer 13
B15: Layer 2 | C15: PLANE | E15: 0.5 | H15: =IF(K15>J15,J15,K15) -> 0 | I15: =K15+E15+E14+E13 -> 9 | J15: =E14 -> 8 | K15: =IF(G15="layer 3",E16,IF(G15="layer 4",E16+E17+E18,IF(G15="layer 8",E16+E17+E18+E19+E20+E21+E22+E23+E24+E25+E26+E27+E28+E29+E30+E31+E32+E33+E34+E35+E36+E37+E38,))) -> 0 | L15: =IF(K15<J15,J15,K15) -> 8 | M15: =IF(C15="plane",O2,IF(F15="",(60/SQRT(N15))*LN((5.98*K15)/(0.8*S15+E15)),IF(F15="layer 1",(80/SQRT(C42))*LN((1.9*(2*E14+E15))/(0.8*S15+E15))*(1-(H15/(4*L15))),))) -> PLANE | N15: =C42*(1-(EXP((-1.55*I15)/K15))) ->  | P15: Layer 14 | S15: 5
E16: 6
B17: Layer 3 | C17: PLANE | E17: 1 | H17: =IF(K17>J17,J17,K17) -> 0 | I17: =K17+E17+E16+E15+E14+E13 -> 16 | J17: =IF(F17="layer 2",E16,IF(F17="layer 1",E14+E15+E16,)) -> 0 | K17: =IF(G17="layer 4",E18,IF(G17="layer 7",E18+E19+E20+E21+E22+E23+E24+E25+E26+E27+E28+E29+E30+E31+E32+E33+E34+E35+E36,IF(G17="layer 8",E18+E19+E20+E21+E22+E23+E24+E25+E26+E27+E28+E29+E30+E31+E32+E33+E34+E35+E36+E37+E38,))) -> 0 | L17: =IF(K17<J17,J17,K17) -> 0 | M17: =IF(C17="plane",O2,IF(F17="",(60/SQRT(N17))*LN((5.98*K17)/(0.8*S17+E17)),IF(F17="Layer 1",(80/SQRT(C42))*LN((1.9*(2*H17+E17))/(0.8*S17+E17))*(1-(H17/(4*L17))),IF(F17="Layer 2",(80/SQRT(C42))*LN((1.9*(2*H17+E17))/(0.8*S17+E17))*(1-(H17/(4*L17))),)))) -> PLANE | N17: =C42*(1-(EXP((-1.55*I17)/K17))) ->  | S17: 5
E18: 9
B19: Layer 4 | C19: TRACK | E19: 1 | F19: Layer 3 | G19: Layer 6 | H19: =IF(K19>J19,J19,K19) -> 9 | I19: =K19+E19+E18+E17+E16+E15+E14+E13 -> 44 | J19: =IF(F19="layer 3",E18,IF(F19="layer 2",E18+E17+E16,IF(F19="layer 1",E18+E17+E16+E14,))) -> 9 | K19: =IF(G19="layer 6",E20+E21+E22+E23+E24+E25+E26+E27+E28+E29+E30+E31+E32+E33+E34,IF(G19="layer 7",E20+E21+E22+E23+E24+E25+E26+E27+E28+E29+E30+E31+E32+E33+E34+E35+E36,IF(G19="layer 8",E20+E21+E22+E23+E24+E25+E26+E27+E28+E29+E30+E31+E32+E33+E34+E35+E36+E37+E38,))) -> 18 | L19: =IF(K19<J19,J19,K19) -> 18 | M19: =IF(C19="plane",O2,IF(F19="",(60/SQRT(N19))*LN((5.98*K19)/(0.8*S19+E19)),IF(F19="Layer 1",(80/SQRT(C42))*LN((1.9*(2*H19+E19))/(0.8*S19+E19))*(1-(H19/(4*L19))),IF(F19="Layer 2",(80/SQRT(C42))*LN((1.9*(2*H19+E19))/(0.8*S19+E19))*(1-(H19/(4*L19))),IF(F19="Layer 3",(80/SQRT(C42))*LN((1.9*(2*H19+E19))/(0.8*S19+E19))*(1-(H19/(4*L19))),))))) -> 67.52245125 | N19: =C42*(1-(EXP((-1.55*I19)/K19))) -> 4.104992967 | S19: 5
E20: 0
B21: Layer 5 | C21: TRACK | E21: 0 | H21: =IF(K21>J21,J21,K21) -> 0 | I21: =K21+E21+E20+E19+E18+E17+E16+E15+E14+E13 -> 26 | J21: =IF(F21="layer 4",E20,IF(F21="layer 3",E20+E19+E18,IF(F21="layer 2",E20+E19+E18+E17+E16,IF(F21="layer 1",E20+E19+E18+E17+E16+E15+E14,)))) -> 0 | K21: =IF(G21="layer 6",E22,IF(G21="layer 7",E22+E23+E24,IF(G21="layer 11",E22+E23+E24+E25+E26+E27+E30+E31+E32,IF(G21="layer 12",E22+E23+E24+E25+E26+E27+E28+E29+E30+E31+E32+E33+E34,IF(G21="layer 13",E22+E23+E24+E25+E26+E27+E28+E29+E30+E31+E32+E33+E34+E35+E36,IF(G21="layer 14",E22+E23+E24+E25+E26+E27+E28+E29+E30+E31+E32+E33+E34+E35+E36+E37+E38,)))))) -> 0 | L21: =IF(K21<J21,J21,K21) -> 0 | M21: =IF(C21="plane",O2,IF(F21="",(60/SQRT(N21))*LN((5.98*K21)/(0.8*S21+E21)),IF(F21="Layer 1",(80/SQRT(C42))*LN((1.9*(2*H21+E21))/(0.8*S21+E21))*(1-(H21/(4*L21))),IF(F21="Layer 2",(80/SQRT(C42))*LN((1.9*(2*H21+E21))/(0.8*S21+E21))*(1-(H21/(4*L21))),IF(F21="Layer 3",(80/SQRT(C42))*LN((1.9*(2*H21+E21))/(0.8*S21+E21))*(1-(H21/(4*L21))),IF(F21="Layer 4",(80/SQRT(C42))*LN((1.9*(2*H21+E21))/(0.8*S21+E21))*(1-(H21/(4*L21))),)))))) ->  | N21: =C42*(1-(EXP((-1.55*I21)/K21))) ->  | S21: 5
E22: 0
B23: Layer 0 | C23: TRACK | E23: 0 | H23: =IF(K23>J23,J23,K23) -> 0 | I23: =K23+E23+E22+E21+E20+E19+E18+E17+E16+E15+E14+E13 -> 26 | J23: =IF(F23="layer 5",E22,IF(F23="layer 4",E22+E21+E20,IF(F23="layer 3",E22+E21+E20+E19+E18,IF(F23="layer 2",E22+E21+E20+E19+E18+E17+E16,IF(F23="layer 1",E22+E21+E20+E19+E18+E17+E16+E15+E14,))))) -> 0 | K23: =IF(G23="layer 7",E24,IF(G23="layer 10",E24+E25+E26+E27+E28+E29+E30,IF(G23="layer11",E24+E25+E26+E27+E28+E29+E32,IF(G23="layer 12",E24+E25+E26+E27+E28+E29+E32+E33+E34,IF(G23="layer 13",E24+E25+E26+E27+E28+E29+E32+E33+E34+E35+E36,IF(G23="layer 14",E24+E25+E26+E27+E28+E29+E30+E31+E32+E33+E34+E35+E36+E37+E38,)))))) -> 0 | L23: =IF(K23<J23,J23,K23) -> 0 | M23: =IF(C23="plane",O2,IF(F23="",(60/SQRT(N23))*LN((5.98*K23)/(0.8*S23+E23)),IF(F23="Layer 1",(80/SQRT(C42))*LN((1.9*(2*H23+E23))/(0.8*S23+E23))*(1-(H23/(4*L23))),IF(F23="Layer 2",(80/SQRT(C42))*LN((1.9*(2*H23+E23))/(0.8*S23+E23))*(1-(H23/(4*L23))),IF(F23="Layer 3",(80/SQRT(C42))*LN((1.9*(2*H23+E23))/(0.8*S23+E23))*(1-(H23/(4*L23))),IF(F23="Layer 4",(80/SQRT(C42))*LN((1.9*(2*H23+E23))/(0.8*S23+E23))*(1-(H23/(4*L23))),IF(F23="Layer 5",(80/SQRT(C42))*LN((1.9*(2*J23+E23))/(0.8*S23+E23))*(1-(H23/(4*L23))),))))))) ->  | N23: =C42*(1-(EXP((-1.55*I23)/K23))) ->  | S23: 5
E24: 0
B25: Layer 0 | C25: TRACK | E25: 0 | H25: =IF(K25>J25,J25,K25) -> 0 | J25: =IF(F25="layer 6",E24,IF(F23="layer 5",E24+E23+E22,IF(F25="layer 4",E24+E23+E22,IF(F25="layer 3",E24+E23+E22+E21+E20,IF(F25="layer 2",E24+E23+E22+E21+E20+E19+E18,IF(F25="layer 1",E24+E23+E22+E21+E20+E19+E18+E17+E16,)))))) -> 0 | K25: =IF(G25="layer 9",E26+E27+E28,IF(G25="layer 10",E26+E27+E28+E29+E30,IF(G25="layer 11",E26+E27+E28+E29+E30+E31+E32,IF(G25="layer 12",E26+E27+E28+E29+E30+E31+E32+E33+E34,IF(G25="layer 13",E26+E27+E28+E29+E30+E31+E32+E33+E34+E35+E36,IF(G25="layer 14",E26+E27+E28+E29+E30+E31+E32+E33+E34+E35+E36+E37+E38,)))))) -> 0 | L25: =IF(K25<J25,J25,K25) -> 0 | M25: =IF(C25="plane",O2,(80/SQRT(C42))*LN((1.9*(2*H25+E25))/(0.8*S25+E25))*(1-(H25/(4*L25)))) ->  | S25: 5
C26: Middle | E26: 8 | W26: PCB SIZE REQUIRED
B27: Layer 0 | C27: =C25 -> TRACK | E27: 0 | M27: =M25 ->  | S27: 5
E28: 0
B29: Layer 0 | C29: =C23 -> TRACK | E29: 0 | M29: =M23 ->  | S29: =S23 -> 5
E30: 0
B31: Layer 0 | C31: =C21 -> TRACK | E31: 0 | M31: =M21 ->  | S31: =S21 -> 5
E32: 0 | W32: PCB SIZE REQUIRED
B33: Layer 5 | C33: =C19 -> TRACK | E33: =E19 -> 1 | M33: =M19 -> 67.52245125 | S33: =S19 -> 5 | W33: PCB | X33: 1.6
E34: =E18 -> 9 | W34: TOLERENCE | X34: 5
B35: Layer 6 | C35: =C17 -> PLANE | E35: =E17 -> 1 | M35: =M17 -> PLANE | S35: =S17 -> 5 | W35: TOTAL
E36: =E16 -> 6 | W36: MAX. | X36: =X33/100*X34+X33 -> 1.68
B37: Layer 7 | C37: =C15 -> PLANE | E37: =E15 -> 0.5 | M37: =M15 -> PLANE | S37: =S15 -> 5 | W37: MIN. | X37: =X33-(X33/100*X34) -> 1.52
E38: =E14 -> 8
B39: Layer 8 | C39: =C13 -> TRACK | E39: =E13 -> 0.5 | M39: =M13 -> 86.81755594 | S39: =S13 -> 5
W41: TOTAL
B42: ER= | C42: 4.2 | W42: =E13+E14+E16+E15+E17+E18+E19+E20+E21+E22+E23+E24+E25+E26+E27+E28+E29+E30+E31+E32+E33+E34+E35+E36+E37+E38+E39 -> 60

Sheet 10 layer pcb
A1: 1
O2: PLANE | P2: Layer 1
O3: TRACK | P3: Layer 2
P4: Layer 3
P5: Layer 4
P6: Layer 5
F7: PCB No. | P7: Layer 6
F8: PCB Name | P8: Layer 7
B9: 10 LAYER PCB STACKUP | P9: Layer 8
E10: Thickness | F10: Ref. Upper | G10: Ref. Lower | H10: H1a | I10: h2 | J10: H1 | K10: H | L10: ha | M10: Impedance Zo | P10: Layer 9 | S10: Trace Width
P11: Layer 10
P12: Layer 11
B13: Layer 1 | C13: TRACK | E13: 1 | G13: Layer 2 | K13: =IF(G13="layer 2",E14,IF(G13="layer 3",E14+E15+E16,IF(G13="layer 4",E14+E15+E16+E17+E18,IF(G13="layer 5",E14+E15+E16+E17+E18+E19+E20,)))) -> 5 | M13: =IF(C13="plane",O2,60/SQRT(0.475*C42+0.67)*LN((4*K13)/(0.67*(0.8*S13+E13)))) -> 65.67071795 | P13: Layer 12 | S13: 5
E14: 5 | P14: Layer 13
B15: Layer 2 | C15: PLANE | E15: 1 | H15: =IF(K15>J15,J15,K15) -> 0 | I15: =K15+E15+E14+E13 -> 7 | J15: =E14 -> 5 | K15: =IF(G15="layer 3",E16,IF(G15="layer 4",E16+E17+E18,IF(G15="layer 5",E16+E17+E18+E19+E20,IF(G15="layer 10",E16+E17+E18+E19+E20+E21+E22+E23+E24+E25+E26+E27+E28+E29+E30+E31+E32+E33+E34+E35+E36+E37+E38,)))) -> 0 | L15: =IF(K15<J15,J15,K15) -> 5 | M15: =IF(C15="plane",O2,IF(F15="",(60/SQRT(N15))*LN((5.98*K15)/(0.8*S15+E15)),IF(F15="layer 1",(80/SQRT(C42))*LN((1.9*(2*E14+E15))/(0.8*S15+E15))*(1-(H15/(4*L15))),))) -> PLANE | N15: =C42*(1-(EXP((-1.55*I15)/K15))) ->  | P15: Layer 14 | S15: 5
E16: 5
B17: Layer 3 | C17: TRACK | E17: 1 | F17: Layer 2 | G17: Layer 5 | H17: =IF(K17>J17,J17,K17) -> 5 | I17: =K17+E17+E16+E15+E14+E13 -> 24 | J17: =IF(F17="layer 2",E16,IF(F17="layer 1",E14+E15+E16,)) -> 5 | K17: =IF(G17="layer 4",E18,IF(G17="layer 5",E18+E19+E20,IF(G17="layer 9",E18+E19+E20+E21+E22+E23+E24+E25+E26+E27+E28+E29+E30+E31+E32+E33+E34+E35+E36,IF(G17="layer 10",E18+E19+E20+E21+E22+E23+E24+E25+E26+E27+E28+E29+E30+E31+E32+E33+E34+E35+E36+E37+E38,)))) -> 11 | L17: =IF(K17<J17,J17,K17) -> 11 | M17: =IF(C17="plane",O2,IF(F17="",(60/SQRT(N17))*LN((5.98*K17)/(0.8*S17+E17)),IF(F17="Layer 1",(80/SQRT(C42))*LN((1.9*(2*H17+E17))/(0.8*S17+E17))*(1-(H17/(4*L17))),IF(F17="Layer 2",(80/SQRT(C42))*LN((1.9*(2*H17+E17))/(0.8*S17+E17))*(1-(H17/(4*L17))),)))) -> 49.48890286 | N17: =C42*(1-(EXP((-1.55*I17)/K17))) -> 4.057260453 | S17: 5
E18: 5
B19: Layer 4 | C19: TRACK | E19: 1 | F19: Layer 2 | G19: Layer 5 | H19: =IF(K19>J19,J19,K19) -> 5 | I19: =K19+E19+E18+E17+E16+E15+E14+E13 -> 24 | J19: =IF(F19="layer 3",E18,IF(F19="layer 2",E18+E17+E16,IF(F19="layer 1",E18+E17+E16+E14,))) -> 11 | K19: =IF(G19="layer 5",E20,IF(G19="layer 8",E20+E21+E22+E23+E24+E25+E26+E27+E28+E29+E30+E31+E32+E33+E34,IF(G19="layer 9",E20+E21+E22+E23+E24+E25+E26+E27+E28+E29+E30+E31+E32+E33+E34+E35+E36,IF(G19="layer 10",E20+E21+E22+E23+E24+E25+E26+E27+E28+E29+E30+E31+E32+E33+E34+E35+E36+E37+E38,)))) -> 5 | L19: =IF(K19<J19,J19,K19) -> 11 | M19: =IF(C19="plane",O2,IF(F19="",(60/SQRT(N19))*LN((5.98*K19)/(0.8*S19+E19)),IF(F19="Layer 1",(80/SQRT(C42))*LN((1.9*(2*H19+E19))/(0.8*S19+E19))*(1-(H19/(4*L19))),IF(F19="Layer 2",(80/SQRT(C42))*LN((1.9*(2*H19+E19))/(0.8*S19+E19))*(1-(H19/(4*L19))),IF(F19="Layer 3",(80/SQRT(C42))*LN((1.9*(2*H19+E19))/(0.8*S19+E19))*(1-(H19/(4*L19))),))))) -> 49.48890286 | N19: =C42*(1-(EXP((-1.55*I19)/K19))) -> 4.197533402 | S19: 5
E20: 5
B21: Layer 5 | C21: PLANE | E21: 1 | H21: =IF(K21>J21,J21,K21) -> 0 | I21: =K21+E21+E20+E19+E18+E17+E16+E15+E14+E13 -> 25 | J21: =IF(F21="layer 4",E20,IF(F21="layer 3",E20+E19+E18,IF(F21="layer 2",E20+E19+E18+E17+E16,IF(F21="layer 1",E20+E19+E18+E17+E16+E15+E14,)))) -> 0 | K21: =IF(G21="layer 7",E22+E23+E24+E25+E26+E27+E30+E31+E32,IF(G21="layer 8",E22+E23+E24+E25+E26+E27+E28+E29+E30+E31+E32+E33+E34,IF(G21="layer 9",E22+E23+E24+E25+E26+E27+E28+E29+E30+E31+E32+E33+E34+E35+E36,IF(G21="layer 10",E22+E23+E24+E25+E26+E27+E28+E29+E30+E31+E32+E33+E34+E35+E36+E37+E38,)))) -> 0 | L21: =IF(K21<J21,J21,K21) -> 0 | M21: =IF(C21="plane",O2,IF(F21="",(60/SQRT(N21))*LN((5.98*K21)/(0.8*S21+E21)),IF(F21="Layer 1",(80/SQRT(C42))*LN((1.9*(2*H21+E21))/(0.8*S21+E21))*(1-(H21/(4*L21))),IF(F21="Layer 2",(80/SQRT(C42))*LN((1.9*(2*H21+E21))/(0.8*S21+E21))*(1-(H21/(4*L21))),IF(F21="Layer 3",(80/SQRT(C42))*LN((1.9*(2*H21+E21))/(0.8*S21+E21))*(1-(H21/(4*L21))),IF(F21="Layer 4",(80/SQRT(C42))*LN((1.9*(2*H21+E21))/(0.8*S21+E21))*(1-(H21/(4*L21))),)))))) -> PLANE | N21: =C42*(1-(EXP((-1.55*I21)/K21))) ->  | S21: 5
E22: 0
B23: Layer 0 | C23: TRACK | E23: 0 | H23: =IF(K23>J23,J23,K23) -> 0 | I23: =K23+E23+E22+E21+E20+E19+E18+E17+E16+E15+E14+E13 -> 25 | J23: =IF(F23="layer 5",E22,IF(F23="layer 4",E22+E21+E20,IF(F23="layer 3",E22+E21+E20+E19+E18,IF(F23="layer 2",E22+E21+E20+E19+E18+E17+E16,IF(F23="layer 1",E22+E21+E20+E19+E18+E17+E16+E15+E14,))))) -> 0 | K23: =IF(G23="layer 7",E24,IF(G23="layer 10",E24+E25+E26+E27+E28+E29+E30,IF(G23="layer11",E24+E25+E26+E27+E28+E29+E32,IF(G23="layer 12",E24+E25+E26+E27+E28+E29+E32+E33+E34,IF(G23="layer 13",E24+E25+E26+E27+E28+E29+E32+E33+E34+E35+E36,IF(G23="layer 14",E24+E25+E26+E27+E28+E29+E30+E31+E32+E33+E34+E35+E36+E37+E38,)))))) -> 0 | L23: =IF(K23<J23,J23,K23) -> 0 | M23: =IF(C23="plane",O2,IF(F23="",(60/SQRT(N23))*LN((5.98*K23)/(0.8*S23+E23)),IF(F23="Layer 1",(80/SQRT(C42))*LN((1.9*(2*H23+E23))/(0.8*S23+E23))*(1-(H23/(4*L23))),IF(F23="Layer 2",(80/SQRT(C42))*LN((1.9*(2*H23+E23))/(0.8*S23+E23))*(1-(H23/(4*L23))),IF(F23="Layer 3",(80/SQRT(C42))*LN((1.9*(2*H23+E23))/(0.8*S23+E23))*(1-(H23/(4*L23))),IF(F23="Layer 4",(80/SQRT(C42))*LN((1.9*(2*H23+E23))/(0.8*S23+E23))*(1-(H23/(4*L23))),IF(F23="Layer 5",(80/SQRT(C42))*LN((1.9*(2*J23+E23))/(0.8*S23+E23))*(1-(H23/(4*L23))),))))))) ->  | N23: =C42*(1-(EXP((-1.55*I23)/K23))) ->  | S23: 5
E24: 0
B25: Layer 0 | C25: TRACK | E25: 0 | H25: =IF(K25>J25,J25,K25) -> 0 | J25: =IF(F25="layer 6",E24,IF(F23="layer 5",E24+E23+E22,IF(F25="layer 4",E24+E23+E22,IF(F25="layer 3",E24+E23+E22+E21+E20,IF(F25="layer 2",E24+E23+E22+E21+E20+E19+E18,IF(F25="layer 1",E24+E23+E22+E21+E20+E19+E18+E17+E16,)))))) -> 0 | K25: =IF(G25="layer 9",E26+E27+E28,IF(G25="layer 10",E26+E27+E28+E29+E30,IF(G25="layer 11",E26+E27+E28+E29+E30+E31+E32,IF(G25="layer 12",E26+E27+E28+E29+E30+E31+E32+E33+E34,IF(G25="layer 13",E26+E27+E28+E29+E30+E31+E32+E33+E34+E35+E36,IF(G25="layer 14",E26+E27+E28+E29+E30+E31+E32+E33+E34+E35+E36+E37+E38,)))))) -> 0 | L25: =IF(K25<J25,J25,K25) -> 0 | M25: =IF(C25="plane",O2,(80/SQRT(C42))*LN((1.9*(2*H25+E25))/(0.8*S25+E25))*(1-(H25/(4*L25)))) ->  | S25: 5
C26: Middle | E26: 5
B27: Layer 0 | C27: =C25 -> TRACK | E27: =E25 -> 0 | M27: =M25 ->  | S27: 5
E28: =E24 -> 0
B29: Layer 0 | C29: =C23 -> TRACK | E29: =E23 -> 0 | M29: =M23 ->  | S29: =S23 -> 5
E30: 0
B31: Layer 6 | C31: =C21 -> PLANE | E31: 1 | M31: =M21 -> PLANE | S31: =S21 -> 5
E32: =E20 -> 5 | W32: PCB SIZE REQUIRED
B33: Layer 7 | C33: =C19 -> TRACK | E33: =E19 -> 1 | M33: =M19 -> 49.48890286 | S33: =S19 -> 5 | W33: PCB | X33: 1.6
E34: =E18 -> 5 | W34: TOLERENCE | X34: 5
B35: Layer 8 | C35: =C17 -> TRACK | E35: =E17 -> 1 | M35: =M17 -> 49.48890286 | S35: =S17 -> 5 | W35: TOTAL
E36: =E16 -> 5 | W36: MAX. | X36: =X33/100*X34+X33 -> 1.68
B37: Layer 9 | C37: =C15 -> PLANE | E37: =E15 -> 1 | M37: =M15 -> PLANE | S37: =S15 -> 5 | W37: MIN. | X37: =X33-(X33/100*X34) -> 1.52
E38: =E14 -> 5
B39: Layer 10 | C39: =C13 -> TRACK | E39: =E13 -> 1 | M39: =M13 -> 65.67071795 | S39: =S13 -> 5
W41: TOTAL
B42: ER= | C42: 4.2 | W42: =E13+E14+E16+E15+E17+E18+E19+E20+E21+E22+E23+E24+E25+E26+E27+E28+E29+E30+E31+E32+E33+E34+E35+E36+E37+E38+E39 -> 55

Sheet 12 layer pcb
A1: 1
O2: PLANE | P2: Layer 1
O3: TRACK | P3: Layer 2
P4: Layer 3
P5: Layer 4
P6: Layer 5
F7: PCB No. | P7: Layer 6
F8: PCB Name | P8: Layer 7
B9: 12 LAYER PCB STACKUP | P9: Layer 8
E10: Thickness | F10: Ref. Upper | G10: Ref. Lower | H10: H1a | I10: h2 | J10: H1 | K10: H | L10: ha | M10: Impedance Zo | P10: Layer 9 | S10: Trace Width
P11: Layer 10
P12: Layer 11
B13: Layer 1 | C13: PLANE | E13: 45 | K13: =IF(G13="layer 2",E14,IF(G13="layer 3",E14+E15+E16,IF(G13="layer 4",E14+E15+E16+E17+E18,IF(G13="layer 5",E14+E15+E16+E17+E18+E19+E20,IF(G13="layer 6",E14+E15+E16+E17+E18+E19+E20+E21+E22,))))) -> 0 | M13: =IF(C13="plane",O2,60/SQRT(0.475*C42+0.67)*LN((4*K13)/(0.67*(0.8*S13+E13)))) -> PLANE | P13: Layer 12 | S13: 125
E14: 50 | P14: Layer 13
B15: Layer 2 | C15: TRACK | E15: 40 | F15: Layer 1 | G15: Layer 5 | H15: =IF(K15>J15,J15,K15) -> 50 | I15: =K15+E15+E14+E13 -> 550 | J15: =E14 -> 50 | K15: =IF(G15="layer 3",E16,IF(G15="layer 4",E16+E17+E18,IF(G15="layer 5",E16+E17+E18+E19+E20,IF(G15="layer 6",E16+E17+E18+E19+E20+E21+E22,IF(G15="layer 11",E16+E17+E18+E19+E20+E21+E22+E23+E24+E25+E26+E27+E28+E29+E30+E31+E32+E33+E34+E35+E36+E37+E38,))))) -> 415 | L15: =IF(K15<J15,J15,K15) -> 415 | M15: =IF(C15="plane",O2,IF(F15="",(60/SQRT(N15))*LN((5.98*K15)/(0.8*S15+E15)),IF(F15="layer 1",(80/SQRT(C42))*LN((1.9*(2*E14+E15))/(0.8*S15+E15))*(1-(H15/(4*L15))),))) -> 24.30072914 | N15: =C42*(1-(EXP((-1.55*I15)/K15))) -> 3.661588608 | P15: Layer 14 | S15: 125
E16: 57
B17: Layer 3 | C17: TRACK | E17: 40 | F17: Layer 1 | G17: Layer 5 | H17: =IF(K17>J17,J17,K17) -> 147 | I17: =K17+E17+E16+E15+E14+E13 -> 550 | J17: =IF(F17="layer 2",E16,IF(F17="layer 1",E14+E15+E16,)) -> 147 | K17: =IF(G17="layer 4",E18,IF(G17="layer 5",E18+E19+E20,IF(G17="layer 6",E18+E19+E20+E21+E22,IF(G17="layer 11",E18+E19+E20+E21+E22+E23+E24+E25+E26+E27+E28+E29+E30+E31+E32+E33+E34+E35+E36,IF(G17="layer 11",E18+E19+E20+E21+E22+E23+E24+E25+E26+E27+E28+E29+E30+E31+E32+E33+E34+E35+E36+E37+E38,))))) -> 318 | L17: =IF(K17<J17,J17,K17) -> 318 | M17: =IF(C17="plane",O2,IF(F17="",(60/SQRT(N17))*LN((5.98*K17)/(0.8*S17+E17)),IF(F17="Layer 1",(80/SQRT(C42))*LN((1.9*(2*H17+E17))/(0.8*S17+E17))*(1-(H17/(4*L17))),IF(F17="Layer 2",(80/SQRT(C42))*LN((1.9*(2*H17+E17))/(0.8*S17+E17))*(1-(H17/(4*L17))),)))) -> 52.17909101 | N17: =C42*(1-(EXP((-1.55*I17)/K17))) -> 3.9122701 | S17: 125
E18: 60
B19: Layer 4 | C19: TRACK | E19: 40 | F19: Layer 1 | G19: Layer 5 | H19: =IF(K19>J19,J19,K19) -> 207 | I19: =K19+E19+E18+E17+E16+E15+E14+E13 -> 550 | J19: =IF(F19="layer 3",E18,IF(F19="layer 2",E18+E17+E16,IF(F19="layer 1",E18+E17+E16+E14,))) -> 207 | K19: =IF(G19="layer 5",E20,IF(G19="layer 6",E20+E21+E22,IF(G19="layer 10",E20+E21+E22+E23+E24+E25+E26+E27+E28+E29+E30+E31+E32+E33+E34,IF(G19="layer 11",E20+E21+E22+E23+E24+E25+E26+E27+E28+E29+E30+E31+E32+E33+E34+E35+E36,IF(G19="layer 12",E20+E21+E22+E23+E24+E25+E26+E27+E28+E29+E30+E31+E32+E33+E34+E35+E36+E37+E38,))))) -> 218 | L19: =IF(K19<J19,J19,K19) -> 218 | M19: =IF(C19="plane",O2,IF(F19="",(60/SQRT(N19))*LN((5.98*K19)/(0.8*S19+E19)),IF(F19="Layer 1",(80/SQRT(C42))*LN((1.9*(2*H19+E19))/(0.8*S19+E19))*(1-(H19/(4*L19))),IF(F19="Layer 2",(80/SQRT(C42))*LN((1.9*(2*H19+E19))/(0.8*S19+E19))*(1-(H19/(4*L19))),IF(F19="Layer 3",(80/SQRT(C42))*LN((1.9*(2*H19+E19))/(0.8*S19+E19))*(1-(H19/(4*L19))),))))) -> 54.13001029 | N19: =C42*(1-(EXP((-1.55*I19)/K19))) -> 4.115876215 | S19: 125
E20: 218
B21: Layer 5 | C21: PLANE | E21: 40 | H21: =IF(K21>J21,J21,K21) -> 0 | I21: =K21+E21+E20+E19+E18+E17+E16+E15+E14+E13 -> 590 | J21: =IF(F21="layer 4",E20,IF(F21="layer 3",E20+E19+E18,IF(F21="layer 2",E20+E19+E18+E17+E16,IF(F21="layer 1",E20+E19+E18+E17+E16+E15+E14,)))) -> 0 | K21: =IF(G21="layer 6",E22,IF(G21="layer 9",E22+E23+E24+E25+E26+E27+E30+E31+E32,IF(G21="layer 10",E22+E23+E24+E25+E26+E27+E28+E29+E30+E31+E32+E33+E34,IF(G21="layer 11",E22+E23+E24+E25+E26+E27+E28+E29+E30+E31+E32+E33+E34+E35+E36,IF(G21="layer 12",E22+E23+E24+E25+E26+E27+E28+E29+E30+E31+E32+E33+E34+E35+E36+E37+E38,))))) -> 0 | L21: =IF(K21<J21,J21,K21) -> 0 | M21: =IF(C21="plane",O2,IF(F21="",(60/SQRT(N21))*LN((5.98*K21)/(0.8*S21+E21)),IF(F21="Layer 1",(80/SQRT(C42))*LN((1.9*(2*H21+E21))/(0.8*S21+E21))*(1-(H21/(4*L21))),IF(F21="Layer 2",(80/SQRT(C42))*LN((1.9*(2*H21+E21))/(0.8*S21+E21))*(1-(H21/(4*L21))),IF(F21="Layer 3",(80/SQRT(C42))*LN((1.9*(2*H21+E21))/(0.8*S21+E21))*(1-(H21/(4*L21))),IF(F21="Layer 4",(80/SQRT(C42))*LN((1.9*(2*H21+E21))/(0.8*S21+E21))*(1-(H21/(4*L21))),)))))) -> PLANE | N21: =C42*(1-(EXP((-1.55*I21)/K21))) ->  | S21: 125
E22: 60
B23: Layer 6 | C23: TRACK | E23: 40 | F23: Layer 5 | G23: Layer 8 | H23: =IF(K23>J23,J23,K23) -> 60 | I23: =K23+E23+E22+E21+E20+E19+E18+E17+E16+E15+E14+E13 -> 898 | J23: =IF(F23="layer 5",E22,IF(F23="layer 4",E22+E21+E20,IF(F23="layer 3",E22+E21+E20+E19+E18,IF(F23="layer 2",E22+E21+E20+E19+E18+E17+E16,IF(F23="layer 1",E22+E21+E20+E19+E18+E17+E16+E15+E14,))))) -> 60 | K23: =IF(G23="layer 8",E24+E25+E26+E27+E28+E29+E30,IF(G23="layer 9",E24+E25+E26+E27+E28+E29+E32,IF(G23="layer 10",E24+E25+E26+E27+E28+E29+E32+E33+E34,IF(G23="layer 11",E24+E25+E26+E27+E28+E29+E32+E33+E34+E35+E36,IF(G23="layer 12",E24+E25+E26+E27+E28+E29+E30+E31+E32+E33+E34+E35+E36+E37+E38,))))) -> 208 | L23: =IF(K23<J23,J23,K23) -> 208 | M23: =IF(C23="plane",O2,IF(F23="",(60/SQRT(N23))*LN((5.98*K23)/(0.8*S23+E23)),IF(F23="Layer 1",(80/SQRT(C42))*LN((1.9*(2*H23+E23))/(0.8*S23+E23))*(1-(H23/(4*L23))),IF(F23="Layer 2",(80/SQRT(C42))*LN((1.9*(2*H23+E23))/(0.8*S23+E23))*(1-(H23/(4*L23))),IF(F23="Layer 3",(80/SQRT(C42))*LN((1.9*(2*H23+E23))/(0.8*S23+E23))*(1-(H23/(4*L23))),IF(F23="Layer 4",(80/SQRT(C42))*LN((1.9*(2*H23+E23))/(0.8*S23+E23))*(1-(H23/(4*L23))),IF(F23="Layer 5",(80/SQRT(C42))*LN((1.9*(2*J23+E23))/(0.8*S23+E23))*(1-(H23/(4*L23))),))))))) -> 28.08515773 | N23: =C42*(1-(EXP((-1.55*I23)/K23))) -> 4.194787743 | S23: 125
E24: 0
C25: TRACK | E25: 0 | H25: =IF(K25>J25,J25,K25) -> 0 | J25: =IF(F25="layer 6",E24,IF(F23="layer 5",E24+E23+E22,IF(F25="layer 4",E24+E23+E22,IF(F25="layer 3",E24+E23+E22+E21+E20,IF(F25="layer 2",E24+E23+E22+E21+E20+E19+E18,IF(F25="layer 1",E24+E23+E22+E21+E20+E19+E18+E17+E16,)))))) -> 100 | K25: =IF(G25="layer 9",E26+E27+E28,IF(G25="layer 10",E26+E27+E28+E29+E30,IF(G25="layer 11",E26+E27+E28+E29+E30+E31+E32,IF(G25="layer 12",E26+E27+E28+E29+E30+E31+E32+E33+E34,IF(G25="layer 13",E26+E27+E28+E29+E30+E31+E32+E33+E34+E35+E36,IF(G25="layer 14",E26+E27+E28+E29+E30+E31+E32+E33+E34+E35+E36+E37+E38,)))))) -> 0 | L25: =IF(K25<J25,J25,K25) -> 100 | M25: =IF(C25="plane",O2,(80/SQRT(C42))*LN((1.9*(2*H25+E25))/(0.8*S25+E25))*(1-(H25/(4*L25)))) ->  | S25: 5
C26: Middle | E26: 108
C27: =C25 -> TRACK | E27: 0 | M27: =M25 ->  | S27: 5
E28: 0
B29: Layer 7 | C29: =C23 -> TRACK | E29: =E23 -> 40 | M29: =M23 -> 28.08515773 | S29: =S23 -> 125
E30: =E22 -> 60
B31: Layer 8 | C31: =C21 -> PLANE | E31: =E21 -> 40 | M31: =M21 -> PLANE | S31: =S21 -> 125
E32: =E20 -> 218 | W32: PCB SIZE REQUIRED
B33: Layer 9 | C33: =C19 -> TRACK | E33: =E19 -> 40 | M33: =M19 -> 54.13001029 | S33: =S19 -> 125 | W33: PCB | X33: 1.6
E34: =E18 -> 60 | W34: TOLERENCE | X34: 5
B35: Layer 10 | C35: =C17 -> TRACK | E35: =E17 -> 40 | M35: =M17 -> 52.17909101 | S35: =S17 -> 125 | W35: TOTAL
E36: =E16 -> 57 | W36: MAX. | X36: =X33/100*X34+X33 -> 1.68
B37: Layer 11 | C37: =C15 -> TRACK | E37: =E15 -> 40 | M37: =M15 -> 24.30072914 | S37: =S15 -> 125 | W37: MIN. | X37: =X33-(X33/100*X34) -> 1.52
E38: =E14 -> 50
B39: Layer 12 | C39: =C13 -> PLANE | E39: =E13 -> 45 | M39: =M13 -> PLANE | S39: =S13 -> 125
W41: TOTAL
B42: ER= | C42: 4.2 | W42: =E13+E14+E16+E15+E17+E18+E19+E20+E21+E22+E23+E24+E25+E26+E27+E28+E29+E30+E31+E32+E33+E34+E35+E36+E37+E38+E39 -> 1488

Sheet 14 layer pcb
A1: 1
O2: PLANE | P2: Layer 1
O3: TRACK | P3: Layer 2
P4: Layer 3
P5: Layer 4
P6: Layer 5
F7: PCB No. | P7: Layer 6
F8: PCB Name | P8: Layer 7
B9: 14 LAYER PCB STACKUP | P9: Layer 8
E10: Thickness | F10: Ref. Upper | G10: Ref. Lower | H10: H1a | I10: h2 | J10: H1 | K10: H | L10: ha | M10: Impedance Zo | P10: Layer 9 | S10: Trace Width
P11: Layer 10
P12: Layer 11
B13: Layer 1 | C13: TRACK | E13: 1 | G13: Layer 3 | K13: =IF(G13="layer 2",E14,IF(G13="layer 3",SUM(E14:E16),IF(G13="layer 4",SUM(E14:E18),IF(G13="layer 5",SUM(E14:E20),IF(G13="layer 6",SUM(E14:E22),IF(G13="layer 7",SUM(E14:E24),)))))) -> 11 | M13: =IF(C13="plane",O2,60/SQRT(0.475*C42+0.67)*LN((4*K13)/(0.67*(0.8*S13+E13)))) -> 94.6495485 | P13: Layer 12 | S13: 5
E14: 5 | P14: Layer 13
B15: Layer 2 | C15: TRACK | E15: 1 | G15: Layer 3 | H15: =IF(K15>J15,J15,K15) -> 5 | I15: =K15+E15+E14+E13 -> 12 | J15: =E14 -> 5 | K15: =IF(G15="layer 3",E16,IF(G15="layer 4",SUM(E16:E18),IF(G15="layer 5",E16+E17+E18+E19+E20,IF(G15="layer 6",E16+E17+E18+E19+E20+E21+E22,IF(G15="layer 7",E16+E17+E18+E19+E20+E21+E22+E23+E24,IF(G15="layer 14",E16+E17+E18+E19+E20+E21+E22+E23+E24+E25+E26+E27+E28+E29+E30+E31+E32+E33+E34+E35+E36+E37+E38,)))))) -> 5 | L15: =IF(K15<J15,J15,K15) -> 5 | M15: =IF(C15="plane",O2,IF(F15="",(60/SQRT(N15))*LN((5.98*K15)/(0.8*S15+E15)),IF(F15="layer 1",(80/SQRT(C42))*LN((1.9*(2*E14+E15))/(0.8*S15+E15))*(1-(H15/(4*L15))),))) -> 53.0058024 | N15: =C42*(1-(EXP((-1.55*I15)/K15))) -> 4.098217335 | P15: Layer 14 | S15: 5
E16: 5
B17: Layer 3 | C17: PLANE | E17: 1 | H17: =IF(K17>J17,J17,K17) -> 0 | I17: =K17+E17+E16+E15+E14+E13 -> 13 | J17: =IF(F17="layer 2",E16,IF(F17="layer 1",E14+E15+E16,)) -> 0 | K17: =IF(G17="layer 4",E18,IF(G17="layer 5",E18+E19+E20,IF(G17="layer 6",E18+E19+E20+E21+E22,IF(G17="layer 7",E18+E19+E20+E21+E22+E23+E24,IF(G17="layer 13",E18+E19+E20+E21+E22+E23+E24+E25+E26+E27+E28+E29+E30+E31+E32+E33+E34+E35+E36,IF(G17="layer 14",E18+E19+E20+E21+E22+E23+E24+E25+E26+E27+E28+E29+E30+E31+E32+E33+E34+E35+E36+E37+E38,)))))) -> 0 | L17: =IF(K17<J17,J17,K17) -> 0 | M17: =IF(C17="plane",O2,IF(F17="",(60/SQRT(N17))*LN((5.98*K17)/(0.8*S17+E17)),IF(F17="Layer 1",(80/SQRT(C42))*LN((1.9*(2*H17+E17))/(0.8*S17+E17))*(1-(H17/(4*L17))),IF(F17="Layer 2",(80/SQRT(C42))*LN((1.9*(2*H17+E17))/(0.8*S17+E17))*(1-(H17/(4*L17))),)))) -> PLANE | N17: =C42*(1-(EXP((-1.55*I17)/K17))) ->  | S17: 5
E18: 5
B19: Layer 4 | C19: TRACK | E19: 1 | F19: Layer 3 | G19: Layer 5 | H19: =IF(K19>J19,J19,K19) -> 5 | I19: =K19+E19+E18+E17+E16+E15+E14+E13 -> 24 | J19: =IF(F19="layer 3",E18,IF(F19="layer 2",E18+E17+E16,IF(F19="layer 1",E18+E17+E16+E14,))) -> 5 | K19: =IF(G19="layer 5",E20,IF(G19="layer 6",E20+E21+E22,IF(G19="layer 7",E20+E21+E22+E23+E24,IF(G19="layer 12",E20+E21+E22+E23+E24+E25+E26+E27+E28+E29+E30+E31+E32+E33+E34,IF(G19="layer 13",E20+E21+E22+E23+E24+E25+E26+E27+E28+E29+E30+E31+E32+E33+E34+E35+E36,IF(G19="layer 14",E20+E21+E22+E23+E24+E25+E26+E27+E28+E29+E30+E31+E32+E33+E34+E35+E36+E37+E38,)))))) -> 5 | L19: =IF(K19<J19,J19,K19) -> 5 | M19: =IF(C19="plane",O2,IF(F19="",(60/SQRT(N19))*LN((5.98*K19)/(0.8*S19+E19)),IF(F19="Layer 1",(80/SQRT(C42))*LN((1.9*(2*H19+E19))/(0.8*S19+E19))*(1-(H19/(4*L19))),IF(F19="Layer 2",(80/SQRT(C42))*LN((1.9*(2*H19+E19))/(0.8*S19+E19))*(1-(H19/(4*L19))),IF(F19="Layer 3",(80/SQRT(C42))*LN((1.9*(2*H19+E19))/(0.8*S19+E19))*(1-(H19/(4*L19))),))))) -> 41.8752255 | N19: =C42*(1-(EXP((-1.55*I19)/K19))) -> 4.197533402 | S19: 5
E20: 5
B21: Layer 5 | C21: PLANE | E21: 1 | H21: =IF(K21>J21,J21,K21) -> 0 | I21: =K21+E21+E20+E19+E18+E17+E16+E15+E14+E13 -> 25 | J21: =IF(F21="layer 4",E20,IF(F21="layer 3",E20+E19+E18,IF(F21="layer 2",E20+E19+E18+E17+E16,IF(F21="layer 1",E20+E19+E18+E17+E16+E15+E14,)))) -> 0 | K21: =IF(G21="layer 6",E22,IF(G21="layer 7",E22+E23+E24,IF(G21="layer 11",E22+E23+E24+E25+E26+E27+E30+E31+E32,IF(G21="layer 12",E22+E23+E24+E25+E26+E27+E28+E29+E30+E31+E32+E33+E34,IF(G21="layer 13",E22+E23+E24+E25+E26+E27+E28+E29+E30+E31+E32+E33+E34+E35+E36,IF(G21="layer 14",E22+E23+E24+E25+E26+E27+E28+E29+E30+E31+E32+E33+E34+E35+E36+E37+E38,)))))) -> 0 | L21: =IF(K21<J21,J21,K21) -> 0 | M21: =IF(C21="plane",O2,IF(F21="",(60/SQRT(N21))*LN((5.98*K21)/(0.8*S21+E21)),IF(F21="Layer 1",(80/SQRT(C42))*LN((1.9*(2*H21+E21))/(0.8*S21+E21))*(1-(H21/(4*L21))),IF(F21="Layer 2",(80/SQRT(C42))*LN((1.9*(2*H21+E21))/(0.8*S21+E21))*(1-(H21/(4*L21))),IF(F21="Layer 3",(80/SQRT(C42))*LN((1.9*(2*H21+E21))/(0.8*S21+E21))*(1-(H21/(4*L21))),IF(F21="Layer 4",(80/SQRT(C42))*LN((1.9*(2*H21+E21))/(0.8*S21+E21))*(1-(H21/(4*L21))),)))))) -> PLANE | N21: =C42*(1-(EXP((-1.55*I21)/K21))) ->  | S21: 5
E22: 5
B23: Layer 6 | C23: TRACK | E23: 1 | F23: Layer 5 | G23: Layer 10 | H23: =IF(K23>J23,J23,K23) -> 5 | I23: =K23+E23+E22+E21+E20+E19+E18+E17+E16+E15+E14+E13 -> 50 | J23: =IF(F23="layer 5",E22,IF(F23="layer 4",E22+E21+E20,IF(F23="layer 3",E22+E21+E20+E19+E18,IF(F23="layer 2",E22+E21+E20+E19+E18+E17+E16,IF(F23="layer 1",E22+E21+E20+E19+E18+E17+E16+E15+E14,))))) -> 5 | K23: =IF(G23="layer 7",E24,IF(G23="layer 10",E24+E25+E26+E27+E28+E29+E30,IF(G23="layer11",E24+E25+E26+E27+E28+E29+E32,IF(G23="layer 12",E24+E25+E26+E27+E28+E29+E32+E33+E34,IF(G23="layer 13",E24+E25+E26+E27+E28+E29+E32+E33+E34+E35+E36,IF(G23="layer 14",E24+E25+E26+E27+E28+E29+E30+E31+E32+E33+E34+E35+E36+E37+E38,)))))) -> 19 | L23: =IF(K23<J23,J23,K23) -> 19 | M23: =IF(C23="plane",O2,IF(F23="",(60/SQRT(N23))*LN((5.98*K23)/(0.8*S23+E23)),IF(F23="Layer 1",(80/SQRT(C42))*LN((1.9*(2*H23+E23))/(0.8*S23+E23))*(1-(H23/(4*L23))),IF(F23="Layer 2",(80/SQRT(C42))*LN((1.9*(2*H23+E23))/(0.8*S23+E23))*(1-(H23/(4*L23))),IF(F23="Layer 3",(80/SQRT(C42))*LN((1.9*(2*H23+E23))/(0.8*S23+E23))*(1-(H23/(4*L23))),IF(F23="Layer 4",(80/SQRT(C42))*LN((1.9*(2*H23+E23))/(0.8*S23+E23))*(1-(H23/(4*L23))),IF(F23="Layer 5",(80/SQRT(C42))*LN((1.9*(2*J23+E23))/(0.8*S23+E23))*(1-(H23/(4*L23))),))))))) -> 52.1603686 | N23: =C42*(1-(EXP((-1.55*I23)/K23))) -> 4.128913856 | S23: 5
E24: 5
B25: Layer 7 | C25: TRACK | E25: 1 | F25: Layer 5 | G25: Layer 10 | H25: =IF(K25>J25,J25,K25) -> 11 | J25: =IF(F25="layer 6",E24,IF(F23="layer 5",E24+E23+E22,IF(F25="layer 4",E24+E23+E22,IF(F25="layer 3",E24+E23+E22+E21+E20,IF(F25="layer 2",E24+E23+E22+E21+E20+E19+E18,IF(F25="layer 1",E24+E23+E22+E21+E20+E19+E18+E17+E16,)))))) -> 11 | K25: =IF(G25="layer 9",E26+E27+E28,IF(G25="layer 10",E26+E27+E28+E29+E30,IF(G25="layer 11",E26+E27+E28+E29+E30+E31+E32,IF(G25="layer 12",E26+E27+E28+E29+E30+E31+E32+E33+E34,IF(G25="layer 13",E26+E27+E28+E29+E30+E31+E32+E33+E34+E35+E36,IF(G25="layer 14",E26+E27+E28+E29+E30+E31+E32+E33+E34+E35+E36+E37+E38,)))))) -> 13 | L25: =IF(K25<J25,J25,K25) -> 13 | M25: =IF(C25="plane",O2,(80/SQRT(C42))*LN((1.9*(2*H25+E25))/(0.8*S25+E25))*(1-(H25/(4*L25)))) -> 66.72477862 | S25: 5
C26: Middle | E26: 1
B27: Layer 8 | C27: =C25 -> TRACK | E27: =E25 -> 1 | M27: =M25 -> 66.72477862 | S27: 5
E28: =E24 -> 5
B29: Layer 9 | C29: =C23 -> TRACK | E29: =E23 -> 1 | M29: =M23 -> 52.1603686 | S29: =S23 -> 5
E30: =E22 -> 5
B31: Layer 10 | C31: =C21 -> PLANE | E31: =E21 -> 1 | M31: =M21 -> PLANE | S31: =S21 -> 5
E32: =E20 -> 5 | W32: PCB SIZE REQUIRED
B33: Layer 11 | C33: =C19 -> TRACK | E33: =E19 -> 1 | M33: =M19 -> 41.8752255 | S33: =S19 -> 5 | W33: PCB | X33: 1.6
E34: =E18 -> 5 | W34: TOLERENCE | X34: 5
B35: Layer 12 | C35: =C17 -> PLANE | E35: =E17 -> 1 | M35: =M17 -> PLANE | S35: =S17 -> 5 | W35: TOTAL
E36: =E16 -> 5 | W36: MAX. | X36: =X33/100*X34+X33 -> 1.68
B37: Layer 13 | C37: =C15 -> TRACK | E37: =E15 -> 1 | M37: =M15 -> 53.0058024 | S37: =S15 -> 5 | W37: MIN. | X37: =X33-(X33/100*X34) -> 1.52
E38: =E14 -> 5
B39: Layer 14 | C39: =C13 -> TRACK | E39: =E13 -> 1 | M39: =M13 -> 94.6495485 | S39: =S13 -> 5
W41: TOTAL
B42: ER= | C42: 4.2 | W42: =E13+E14+E16+E15+E17+E18+E19+E20+E21+E22+E23+E24+E25+E26+E27+E28+E29+E30+E31+E32+E33+E34+E35+E36+E37+E38+E39 -> 75

Sheet Trace-calc
A1: 1
E4: W | P4: TRACE - CURRENT
F5: 75 | G5: Thou
W6: Oz | X6: =IF(G5="Thou",F5,IF(G5="micron",F5/25.4,IF(G5="mm",F5/25.4*1000,))) -> 75 | Y6: =IF(N10="Oz",M10*1.44,IF(N10="Thou",M10,IF(N10="micron",M10/25.4,IF(N10="mm",M10/25.4*1000,)))) -> 2.88
P7: CALCULATOR | W7: Thou
W8: Micron | Y8: =X6*Y6 -> 216
M9: T | W9: mm
M10: 2 | N10: Oz | P10: Designed by | W10: Inner | X10: =IF(S15="inner",0.024,0.048) -> 0.048
W11: Outer
P12: PHILLIP RESTALL
P15: Inner Or Outer Tracking Layer | S15: Outer
P17: Maximum temperature rise above ambient | S17: 10 | T17: °C
P18: Result
P19: Maximum current in Amps = | S19: =X10*POWER(S17,0.44)*POWER(Y8,0.725) -> 6.512087194

Sheet Via-calc
A1: 1
M2: TRACE - CURRENT | T2: Oz | U2: =IF(D11="Oz",C11*1.44,IF(D11="Thou",C11,IF(D11="micron",C11/25.4,IF(D11="mm",C11/25.4*1000,)))) -> 2.88 | V2: =3.14*G13 -> 119.32
T3: Thou | U3: =IF(H13="Thou",V2,IF(H13="micron",V2/25.4,IF(H13="mm",V2/25.4*1000,))) -> 119.32 | V3: =1000*G13*(1/25.4) -> 1496.062992
M4: CALCULATOR | T4: Micron | U4: =P14/P10 -> 3.948067847 | V4: =U2*U3 -> 343.6416
M5: Designed by | T5: mm
M6: PHILLIP RESTALL
M8: Maximum temperature rise above ambient | P8: 10 | Q8: °C
M9: Result
M10: Maximum current in Amps = | P10: =0.02*POWER(P8,0.44)*POWER(V4,0.725) -> 3.799326805
C11: 2 | D11: Oz
G13: 38 | H13: Thou | M13: Minimum Via count Calculator
M14: Required current in Amps for single Net | P14: 15
M15: Minimum Number Of Vias Needed = | P15: =ROUNDUP(U4,0) -> 4
B18: Please Note
B19: I have created the Via Calculator on information I found from various sources.
B20: The via calculator simply converts the drill size into its Circumference And assumes this behaves the same as a trace
B21: Due to a lack of Data I cannot confirm the accuracy of this calculator (use as rough guide only).
B22: This means it is down to the User to determine its accuracy.
B24: Selectable Units on Copper Height and Drill Size
B25: Minimum Number of vias Needed now always rounds up | O25: Designed
B26: This Program was designed by Phillip Restall | O26: By

Sheet Thermals
A1: 1
L3: 30 | N3: =C9 -> Thou | S3: THERMAL - CURRENT
S7: CALCULATOR
B8: Select Units | AD8: Outer
C9: Thou | AD9: Inner
S13: Designed by | AD13: =IF(V16="inner",0.024,0.048) -> 0.048
S14: PHILLIP RESTALL
B15: 20 | C15: =C9 -> Thou | AD15: =IF(C9="Thou",L3,IF(C9="micron",L3/25.4,IF(C9="mm",L3/25.4*1000,))) -> 30 | AE15: =AD15*V21 -> 90
S16: Inner Or Outer Layer | V16: Outer | AD16: =IF(C9="Thou",B15,IF(C9="micron",B15/25.4,IF(C9="mm",B15/25.4*1000,))) -> 20
AD17: =IF(C9="Thou",L27,IF(C9="micron",L27/25.4,IF(C9="mm",L27/25.4*1000,))) -> 40 | AE17: =(AD16*2)+(AD17*2) -> 120
S18: Maximum temperature rise above ambient | V18: 10 | W18: °C | AD18: =IF(D28="Oz",C28*1.44,IF(D28="Thou",C28,IF(D28="micron",C28/25.4,IF(D28="mm",C28/25.4*1000,)))) -> 2.88 | AE18: =AD18*AD15 -> 86.4
AD20: mm
S21: Number of Thermals used | V21: 3 | AD21: Thou
AD22: Micron
AD23: Oz
B26: Copper Thickness
L27: 40 | N27: =C9 -> Thou | S27: Thermal Width To Pad Circumference Ratio = | V27: =AE15*100/AE17 -> 75 | W27: %
C28: 2 | D28: Oz
S29: Maximum current in Amps = | V29: =AD13*POWER(V18,0.44)*POWER(AE18,0.725)*V21 -> 10.05390912

Sheet RESISTOR
A1: 1
E6: Partial Square | K6: BURIED RESISTOR
K7: CALCULATOR
K8: Designed by
K9: PHILLIP RESTALL
E11: Bar type
K12: UNIT Type | N12: Thou
BO13: Ps | BP13: AP | BQ13: N | BR13: WT | BS13: LT | BT13: WP | BU13: LP | BV13: TT
K14: Target Resistance Value | N14: 100 | O14: Ohm | BO14: Power | BP14: Area | BQ14: Number of | BR14: Minimum | BS14: Minimum | BT14: Design | BU14: Design | BV14: Total
BO15: Rating | BQ15: Square | BR15: Width | BS15: Length | BT15: Width | BU15: Length | BV15: Tolerance
E16: Serpentine | K16: Sheet Resistivities | N16: 25 | O16: Ohm/Sq. | BO16: mW/mil2 | BP16: mil2 | BR16: mil | BS16: mil | BT16: mil | BU16: mil | BV16: %
BO17: =IF(N16=25,61.2*POWER(BR17*BR17*BQ17,-0.87),IF(N16=50,54.5*POWER(BR17*BR17*BQ17,-0.87),IF(N16=100,45.9*POWER(BR17*BR17*BQ17,-0.87)))) -> 0.007578083393 | BP17: =N18/BO17 -> 659.797437 | BQ17: =N14/N16 -> 4 | BR17: =ROUND(((0.7/(N20-5))* ((BQ17+1)/BQ17))*100,0) -> -88 | BS17: =BR17*BQ17 -> -352 | BT17: =ROUND(SQRT(BP17/BQ17),0) -> 13 | BU17: =(BT17*BQ17) -> 52 | BV17: =(((0.7/(BT17))* ((BQ17+0.7)/BQ17))*100)+5 -> 11.32692308
K18: Power Rating | N18: 5 | O18: mW
BM19: W1 | BN19: L2
K20: Maximum Tolerance | N20: 4 | O20: % | BM20: (Mil) | BN20: (Mil)
J21: Due to limitations in the equation 5% cannot be calculated | BM21: =IF(BR17>=BT17,BR17,BT17) -> 13 | BN21: =IF(BR17>=BT17,BM21*BQ17,BM21*BQ17) -> 52 | BO21: =IF(DU13>=DW13,"t*","P*") -> t*
K22: CLICK TEXT BELOW TO CONTINUE
K23: =IF(BQ17<1,HYPERLINK("[PCBTOOLSETV2_3.xls]PARTIAL!a1",BN28),IF(BQ17=1,HYPERLINK("[PCBTOOLSETV2_3.xls]BARsingle!a1",BN28),IF(BQ17<=10,HYPERLINK("[PCBTOOLSETV2_3.xls]bar!a1",BN28),IF(BQ17>10,HYPERLINK("[PCBTOOLSETV2_3.xls]SERPENTINE!a1",BN28))))) -> Bar Type | BM23: NOTE: WT & LT are derive from the tolerance, and WP & LP are derive form the power dissipation of the
BN24: 25 | BO24: mm
BN25: 50 | BO25: Thou
BN26: 100
K27: CLICK TEXT BELOW FOR CUSTOM
K28: CUSTOM | BN28: =IF(BQ17<1,"Partial Square",IF(BQ17<=10,"Bar Type",IF(BQ17>10,"Serpentine"))) -> Bar Type
B29: For more Information about Buried Resistors click Here >>> | H29: Ohmega

Sheet PARTIAL
A1: 1
G2: PARTIAL
H5: L
G6: =IF(RESISTOR!N12="Thou",RESISTOR!BN21,IF(RESISTOR!N12="mm",RESISTOR!BN21*25.4/1000)) -> 52 | I6: =RESISTOR!N12 -> Thou
S11: W
R12: =IF(RESISTOR!N12="Thou",RESISTOR!BM21,IF(RESISTOR!N12="mm",RESISTOR!BM21*25.4/1000)) -> 13 | T12: =RESISTOR!N12 -> Thou
J16: Dimensions Shown Create
J17: =RESISTOR!N14 -> 100 | M17: Ohm | S17: Resistor
J18: =RESISTOR!N18 -> 5 | L18: mW | N18: =RESISTOR!N20 -> 4 | R18: % | S18: =RESISTOR!N16 -> 25 | U18: Ohm/Sq.
J20: BACK TO START

Sheet Barsingle
A1: 1
G2: BAR TYPE
H5: L
G6: =IF(RESISTOR!N12="Thou",RESISTOR!BN21,IF(RESISTOR!N12="mm",RESISTOR!BN21*25.4/1000)) -> 52 | I6: =RESISTOR!N12 -> Thou
T11: W
S12: =IF(RESISTOR!N12="Thou",RESISTOR!BM21,IF(RESISTOR!N12="mm",RESISTOR!BM21*25.4/1000)) -> 13 | U12: =RESISTOR!N12 -> Thou
I16: Dimensions Shown Create
I17: =RESISTOR!N14 -> 100 | L17: Ohm | R17: Resistor
I18: =RESISTOR!N18 -> 5 | K18: mW | M18: =RESISTOR!N20 -> 4 | O18: % | R18: =RESISTOR!N16 -> 25 | T18: Ohm/Sq.
I20: BACK TO START

Sheet BAR
A1: 1
H2: BAR TYPE
J5: L
I6: =IF(RESISTOR!N12="Thou",RESISTOR!BN21,IF(RESISTOR!N12="mm",RESISTOR!BN21*25.4/1000)) -> 52 | K6: =RESISTOR!N12 -> Thou
X11: W
W12: =IF(RESISTOR!N12="Thou",RESISTOR!BM21,IF(RESISTOR!N12="mm",RESISTOR!BM21*25.4/1000)) -> 13 | Y12: =RESISTOR!N12 -> Thou
I16: Dimensions Shown Create
I17: =RESISTOR!N14 -> 100 | L17: Ohm | O17: Resistor
I18: =RESISTOR!N18 -> 5 | K18: mW | M18: =RESISTOR!N20 -> 4 | O18: % | P18: =RESISTOR!N16 -> 25 | R18: Ohm/Sq.
I20: BACK TO START

Sheet SERPENTINE
A1: 1
J3: CHOOSE TYPE

Sheet SERPENTINE1
A1: 1
O2: SERPENTINE
B5: Type 1 | AA5: 3 | AC5: =IF(AA5=1,"Column","Columns") -> Columns
BK10: 4 | BO10: corners
F12: =G32*2 -> 26 | J12: =RESISTOR!N12 -> Thou | BK12: =AA5*2 -> 6 | BO12: Corners2
BK14: =RESISTOR!N14 -> 100 | BO14: Ohms required
AQ17: =BK39*O38 -> 4.5825 | AS17: =RESISTOR!N12 -> Thou | BK17: =RESISTOR!N16 -> 25 | BO17: Sheet
BK19: =BK10+BK12 -> 10 | BO19: Total corners
B21: =(AQ17-G32)/2 -> -4.20875 | D21: =RESISTOR!N12 -> Thou | BK21: =(BK19*0.559)*BK17 -> 139.75 | BO21: Corners in ohms
BK25: =BK14-BK21 -> -39.75 | BO25: Remaining Ohms
J28: =G32*3 -> 39 | O28: =RESISTOR!N12 -> Thou | W28: Dimensions Shown Create
BK29: =BK25/BK17 -> -1.59 | BO29: No of full squares
W31: =RESISTOR!N14 -> 100 | AB31: Ohm | AF31: Resistor
G32: =O38 -> 13 | K32: =RESISTOR!N12 -> Thou
W33: =RESISTOR!N18 -> 5 | Z33: mW | AC33: =RESISTOR!N20 -> 4 | AF33: % | AH33: =RESISTOR!N16 -> 25 | AK33: Ohm/Sq. | BK33: =BK19+BK29 -> 8.41 | BO33: Total squares
BK35: =BK33-4 -> 4.41 | BO35: standard square removed
BK37: =BK35-AA5 -> 1.41 | BO37: column
O38: =IF(RESISTOR!N12="Thou",RESISTOR!BM21,IF(RESISTOR!N12="mm",RESISTOR!BM21*25.4/1000)) -> 13 | R38: =RESISTOR!N12 -> Thou | W38: BACK TO START
BK39: =BK37/(AA5+1) -> 0.3525 | BO39: overall height

Sheet SERPENTINE2
A1: 1
O2: SERPENTINE
B4: Type 2
AA5: 3 | AC5: =IF(AA5=1,"Column","Columns") -> Columns
AQ17: =IF(RESISTOR!N12="Thou",RESISTOR!BU17/SERPENTINE2!AA5,IF(RESISTOR!N12="mm",RESISTOR!BU17/SERPENTINE2!AA5*25.4/1000)) -> 17.33333333 | AS17: =RESISTOR!N12 -> Thou
AK25: =IF(RESISTOR!N12="Thou",RESISTOR!BM21,IF(RESISTOR!N12="mm",RESISTOR!BM21*25.4/1000)) -> 13 | AO25: =RESISTOR!N12 -> Thou
U30: Dimensions Shown Create
U33: =RESISTOR!N14 -> 100 | Z33: Ohm | AD33: Resistor
U35: =RESISTOR!N18 -> 5 | X35: mW | AA35: =RESISTOR!N20 -> 4 | AD35: % | AF35: =RESISTOR!N16 -> 25 | AI35: Ohm/Sq.
U40: BACK TO START

Sheet Custom
A1: 1
I2: CUSTOM
AI6: UNIT Type | AL6: mm | BC6: 25 | BD6: =IF(D6="r",1,IF(D6="l",0.559,IF(D6="",0))) -> 0 | BE6: =IF(E6="r",1,IF(E6="l",0.559,IF(E6="",0))) -> 0 | BF6: =IF(F6="r",1,IF(F6="l",0.559,IF(F6="",0))) -> 0 | BG6: =IF(G6="r",1,IF(G6="l",0.559,IF(G6="",0))) -> 0 | BH6: =IF(H6="r",1,IF(H6="l",0.559,IF(H6="",0))) -> 0 | BI6: =IF(I6="r",1,IF(I6="l",0.559,IF(I6="",0))) -> 0 | BJ6: =IF(J6="r",1,IF(J6="l",0.559,IF(J6="",0))) -> 0 | BK6: =IF(K6="r",1,IF(K6="l",0.559,IF(K6="",0))) -> 0 | BL6: =IF(L6="r",1,IF(L6="l",0.559,IF(L6="",0))) -> 0 | BM6: =IF(M6="r",1,IF(M6="l",0.559,IF(M6="",0))) -> 0 | BN6: =IF(N6="r",1,IF(N6="l",0.559,IF(N6="",0))) -> 0 | BO6: =IF(O6="r",1,IF(O6="l",0.559,IF(O6="",0))) -> 0 | BP6: =IF(P6="r",1,IF(P6="l",0.559,IF(P6="",0))) -> 0 | BQ6: =IF(Q6="r",1,IF(Q6="l",0.559,IF(Q6="",0))) -> 0 | BR6: =IF(R6="r",1,IF(R6="l",0.559,IF(R6="",0))) -> 0 | BS6: =IF(S6="r",1,IF(S6="l",0.559,IF(S6="",0))) -> 0 | BT6: =IF(T6="r",1,IF(T6="l",0.559,IF(T6="",0))) -> 0 | BU6: =IF(U6="r",1,IF(U6="l",0.559,IF(U6="",0))) -> 0 | BV6: =IF(V6="r",1,IF(V6="l",0.559,IF(V6="",0))) -> 0 | BW6: =IF(W6="r",1,IF(W6="l",0.559,IF(W6="",0))) -> 0 | BX6: =IF(X6="r",1,IF(X6="l",0.559,IF(X6="",0))) -> 0 | BY6: =IF(Y6="r",1,IF(Y6="l",0.559,IF(Y6="",0))) -> 0 | BZ6: =IF(Z6="r",1,IF(Z6="l",0.559,IF(Z6="",0))) -> 0 | CA6: =IF(AA6="r",1,IF(AA6="l",0.559,IF(AA6="",0))) -> 0 | CB6: =IF(AB6="r",1,IF(AB6="l",0.559,IF(AB6="",0))) -> 0 | CC6: =IF(AC6="r",1,IF(AC6="l",0.559,IF(AC6="",0))) -> 0 | CD6: =IF(AD6="r",1,IF(AD6="l",0.559,IF(AD6="",0))) -> 0 | CE6: =IF(AE6="r",1,IF(AE6="l",0.559,IF(AE6="",0))) -> 0 | CF6: =IF(AF6="r",1,IF(AF6="l",0.559,IF(AF6="",0))) -> 0
BC7: 50 | BD7: 0 | BE7: 0 | BF7: 0 | BG7: 0 | BH7: 0 | BI7: 0 | BJ7: 0 | BK7: 0 | BL7: 0 | BM7: 0 | BN7: 0 | BO7: 0 | BP7: 0 | BQ7: 0 | BR7: 0 | BS7: 0 | BT7: 0 | BU7: 0 | BV7: 0 | BW7: 0 | BX7: 0 | BY7: 0 | BZ7: 0 | CA7: 0 | CB7: 0 | CC7: 0 | CD7: 0 | CE7: 0 | CF7: 0
AI8: Sheet Resistivities | AL8: 25 | AM8: Ohm/Sq. | BC8: 100 | BD8: 0 | BE8: 0 | BF8: 0 | BG8: 0 | BH8: 0 | BI8: 0 | BJ8: 0 | BK8: 0 | BL8: 0 | BM8: 0 | BN8: 0 | BO8: 0 | BP8: 0 | BQ8: 0 | BR8: 0 | BS8: 0 | BT8: 0 | BU8: 0 | BV8: 0 | BW8: 0 | BX8: 0 | BY8: 0 | BZ8: 0 | CA8: 0 | CB8: 0 | CC8: 0 | CD8: 0 | CE8: 0 | CF8: 0
BD9: 0 | BE9: 0 | BF9: 0 | BG9: 0 | BH9: 0 | BI9: 0 | BJ9: 0 | BK9: 0 | BL9: 0 | BM9: 0 | BN9: 0 | BO9: 0 | BP9: 0 | BQ9: 0 | BR9: 0 | BS9: 0 | BT9: 0 | BU9: 0 | BV9: 0 | BW9: 0 | BX9: 0 | BY9: 0 | BZ9: 0 | CA9: 0 | CB9: 0 | CC9: 0 | CD9: 0 | CE9: 0 | CF9: 0
AI10: Power Rating | AL10: 10 | AM10: mW | BC10: mm | BD10: 0 | BE10: 0 | BF10: 0 | BG10: 0 | BH10: 0 | BI10: 0 | BJ10: 0 | BK10: 0 | BL10: 0 | BM10: 0 | BN10: 0 | BO10: 0 | BP10: 0 | BQ10: 0 | BR10: 0 | BS10: 0 | BT10: 0 | BU10: 0 | BV10: 0 | BW10: 0 | BX10: 0 | BY10: 0 | BZ10: 0 | CA10: 0 | CB10: 0 | CC10: 0 | CD10: 0 | CE10: 0 | CF10: 0
K11: l | L11: r | M11: l | O11: l | P11: r | Q11: l | S11: l | T11: r | U11: l | BC11: Thou | BD11: 0 | BE11: 0 | BF11: 0 | BG11: 0 | BH11: 0 | BI11: 0 | BJ11: 0 | BK11: 0.559 | BL11: 1 | BM11: 0.559 | BN11: 0 | BO11: 0.559 | BP11: 1 | BQ11: 0.559 | BR11: 0 | BS11: 0.559 | BT11: 1 | BU11: 0.559 | BV11: 0 | BW11: 0 | BX11: 0 | BY11: 0 | BZ11: 0 | CA11: 0 | CB11: 0 | CC11: 0 | CD11: 0 | CE11: 0 | CF11: 0
K12: r | M12: r | O12: r | Q12: r | S12: r | U12: r | AI12: Maximum Tolerance | AL12: 4 | AM12: % | BD12: 0 | BE12: 0 | BF12: 0 | BG12: 0 | BH12: 0 | BI12: 0 | BJ12: 0 | BK12: 1 | BL12: 0 | BM12: 1 | BN12: 0 | BO12: 1 | BP12: 0 | BQ12: 1 | BR12: 0 | BS12: 1 | BT12: 0 | BU12: 1 | BV12: 0 | BW12: 0 | BX12: 0 | BY12: 0 | BZ12: 0 | CA12: 0 | CB12: 0 | CC12: 0 | CD12: 0 | CE12: 0 | CF12: 0
K13: r | M13: r | O13: r | Q13: r | S13: r | U13: r | BD13: 0 | BE13: 0 | BF13: 0 | BG13: 0 | BH13: 0 | BI13: 0 | BJ13: 0 | BK13: 1 | BL13: 0 | BM13: 1 | BN13: 0 | BO13: 1 | BP13: 0 | BQ13: 1 | BR13: 0 | BS13: 1 | BT13: 0 | BU13: 1 | BV13: 0 | BW13: 0 | BX13: 0 | BY13: 0 | BZ13: 0 | CA13: 0 | CB13: 0 | CC13: 0 | CD13: 0 | CE13: 0 | CF13: 0
H14: r | I14: l | K14: r | M14: r | O14: r | Q14: r | S14: r | U14: l | V14: r | AI14: Square Size | AL14: =IF(AL6="Thou",BT37,IF(AL6="mm",BT37*25.4/1000)) -> 0.3302 | AM14: =AL6 -> mm | BD14: 0 | BE14: 0 | BF14: 0 | BG14: 0 | BH14: 1 | BI14: 0.559 | BJ14: 0 | BK14: 1 | BL14: 0 | BM14: 1 | BN14: 0 | BO14: 1 | BP14: 0 | BQ14: 1 | BR14: 0 | BS14: 1 | BT14: 0 | BU14: 0.559 | BV14: 1 | BW14: 0 | BX14: 0 | BY14: 0 | BZ14: 0 | CA14: 0 | CB14: 0 | CC14: 0 | CD14: 0 | CE14: 0 | CF14: 0
I15: r | K15: r | M15: r | O15: r | Q15: r | S15: r | BD15: 0 | BE15: 0 | BF15: 0 | BG15: 0 | BH15: 0 | BI15: 1 | BJ15: 0 | BK15: 1 | BL15: 0 | BM15: 1 | BN15: 0 | BO15: 1 | BP15: 0 | BQ15: 1 | BR15: 0 | BS15: 1 | BT15: 0 | BU15: 0 | BV15: 0 | BW15: 0 | BX15: 0 | BY15: 0 | BZ15: 0 | CA15: 0 | CB15: 0 | CC15: 0 | CD15: 0 | CE15: 0 | CF15: 0
I16: r | K16: r | M16: r | O16: r | Q16: r | S16: r | AI16: Resistance Value | AL16: =BY26 -> 1120.65 | AM16: Ohm | BD16: 0 | BE16: 0 | BF16: 0 | BG16: 0 | BH16: 0 | BI16: 1 | BJ16: 0 | BK16: 1 | BL16: 0 | BM16: 1 | BN16: 0 | BO16: 1 | BP16: 0 | BQ16: 1 | BR16: 0 | BS16: 1 | BT16: 0 | BU16: 0 | BV16: 0 | BW16: 0 | BX16: 0 | BY16: 0 | BZ16: 0 | CA16: 0 | CB16: 0 | CC16: 0 | CD16: 0 | CE16: 0 | CF16: 0
I17: l | J17: r | K17: l | M17: l | N17: r | O17: l | Q17: l | R17: r | S17: l | BD17: 0 | BE17: 0 | BF17: 0 | BG17: 0 | BH17: 0 | BI17: 0.559 | BJ17: 1 | BK17: 0.559 | BL17: 0 | BM17: 0.559 | BN17: 1 | BO17: 0.559 | BP17: 0 | BQ17: 0.559 | BR17: 1 | BS17: 0.559 | BT17: 0 | BU17: 0 | BV17: 0 | BW17: 0 | BX17: 0 | BY17: 0 | BZ17: 0 | CA17: 0 | CB17: 0 | CC17: 0 | CD17: 0 | CE17: 0 | CF17: 0
BD18: 0 | BE18: 0 | BF18: 0 | BG18: 0 | BH18: 0 | BI18: 0 | BJ18: 0 | BK18: 0 | BL18: 0 | BM18: 0 | BN18: 0 | BO18: 0 | BP18: 0 | BQ18: 0 | BR18: 0 | BS18: 0 | BT18: 0 | BU18: 0 | BV18: 0 | BW18: 0 | BX18: 0 | BY18: 0 | BZ18: 0 | CA18: 0 | CB18: 0 | CC18: 0 | CD18: 0 | CE18: 0 | CF18: 0
BD19: 0 | BE19: 0 | BF19: 0 | BG19: 0 | BH19: 0 | BI19: 0 | BJ19: 0 | BK19: 0 | BL19: 0 | BM19: 0 | BN19: 0 | BO19: 0 | BP19: 0 | BQ19: 0 | BR19: 0 | BS19: 0 | BT19: 0 | BU19: 0 | BV19: 0 | BW19: 0 | BX19: 0 | BY19: 0 | BZ19: 0 | CA19: 0 | CB19: 0 | CC19: 0 | CD19: 0 | CE19: 0 | CF19: 0
BD20: 0 | BE20: 0 | BF20: 0 | BG20: 0 | BH20: 0 | BI20: 0 | BJ20: 0 | BK20: 0 | BL20: 0 | BM20: 0 | BN20: 0 | BO20: 0 | BP20: 0 | BQ20: 0 | BR20: 0 | BS20: 0 | BT20: 0 | BU20: 0 | BV20: 0 | BW20: 0 | BX20: 0 | BY20: 0 | BZ20: 0 | CA20: 0 | CB20: 0 | CC20: 0 | CD20: 0 | CE20: 0 | CF20: 0
BD21: 0 | BE21: 0 | BF21: 0 | BG21: 0 | BH21: 0 | BI21: 0 | BJ21: 0 | BK21: 0 | BL21: 0 | BM21: 0 | BN21: 0 | BO21: 0 | BP21: 0 | BQ21: 0 | BR21: 0 | BS21: 0 | BT21: 0 | BU21: 0 | BV21: 0 | BW21: 0 | BX21: 0 | BY21: 0 | BZ21: 0 | CA21: 0 | CB21: 0 | CC21: 0 | CD21: 0 | CE21: 0 | CF21: 0
AI22: Back To Start | BD22: 0 | BE22: 0 | BF22: 0 | BG22: 0 | BH22: 0 | BI22: 0 | BJ22: 0 | BK22: 0 | BL22: 0 | BM22: 0 | BN22: 0 | BO22: 0 | BP22: 0 | BQ22: 0 | BR22: 0 | BS22: 0 | BT22: 0 | BU22: 0 | BV22: 0 | BW22: 0 | BX22: 0 | BY22: 0 | BZ22: 0 | CA22: 0 | CB22: 0 | CC22: 0 | CD22: 0 | CE22: 0 | CF22: 0
BD23: 0 | BE23: 0 | BF23: 0 | BG23: 0 | BH23: 0 | BI23: 0 | BJ23: 0 | BK23: 0 | BL23: 0 | BM23: 0 | BN23: 0 | BO23: 0 | BP23: 0 | BQ23: 0 | BR23: 0 | BS23: 0 | BT23: 0 | BU23: 0 | BV23: 0 | BW23: 0 | BX23: 0 | BY23: 0 | BZ23: 0 | CA23: 0 | CB23: 0 | CC23: 0 | CD23: 0 | CE23: 0 | CF23: 0
D25: To Create your custom Resistor use the following Keys | BY25: =SUM(BD6:CF23) -> 44.826
BY26: =AL8*BY25 -> 1120.65
D27: L = | E27: l | H27: Using the Letter L in the box above will create a Circle, This must be used for any corners | BY27: =ROUNDDOWN(BY25,0) -> 44
D28: R= | E28: r | H28: Using the Letter R in the box above will create a Square, This must be used for any Normal resistor Squares
BO33: Ps | BP33: AP | BQ33: N | BR33: WT | BS33: LT | BT33: WP | BU33: LP | BV33: TT
BO34: Power | BP34: Area | BQ34: Number of | BR34: Minimum | BS34: Minimum | BT34: Design | BU34: Design | BV34: Total
BO35: Rating | BQ35: Square | BR35: Width | BS35: Length | BT35: Width | BU35: Length | BV35: Tolerance
BO36: mW/mil2 | BP36: mil2 | BR36: mil | BS36: mil | BT36: mil | BU36: mil | BV36: %
BO37: =IF(AL8=25,61.2*POWER(BR37*BR37*BQ37,-0.87),IF(AL8=50,54.5*POWER(BR37*BR37*BQ37,-0.87),IF(AL8=100,45.9*POWER(BR37*BR37*BQ37,-0.87)))) -> 0.00131268883 | BP37: =AL10/BO37 -> 7617.951619 | BQ37: =AL16/AL8 -> 44.826 | BR37: =ROUND(((0.7/(AL12-5))* ((BQ37+1)/BQ37))*100,0) -> -72 | BS37: =BR37*BQ37 -> -3227.472 | BT37: =ROUND(SQRT(BP37/BQ37),0) -> 13 | BU37: =(BT37*BQ37) -> 582.738 | BV37: =(((0.7/(BT37))* ((BQ37+0.7)/BQ37))*100)+5 -> 10.4687012
BM39: W1 | BN39: L2
BM40: (Mil) | BN40: (Mil)
BM41: =IF(BR37>=BT37,BR37,BT37) -> 13 | BN41: =IF(BR37>=BT37,BM41*BQ37,BM41*BQ37) -> 582.738 | BO41: =IF(DU33>=DW33,"t*","P*") -> t*
BM43: NOTE: WT & LT are derive from the tolerance, and WP & LP are derive form the power dissipation of the
BN44: 25 | BO44: mm
BN45: 50 | BO45: Thou
BN46: 100
BN48: =IF(BQ37<1,"Partial Square",IF(BQ37<=10,"Bar Type",IF(BQ37>10,"Serpentine"))) -> Serpentine

Sheet convert
A1: II
B6: PCB NUMERIC CONVERTER
B8: General
B10: Inches | C10: 0.188 | D10: = | E10: Milimetres | F10: =C10*25.4 -> 4.7752 | I10: PCB SIZE REQUIRED
I11: PCB | J11: 1.6 | K11: mm
B12: Milimetres | C12: 0.05 | D12: = | E12: Inches | F12: =C12/25.4 -> 0.001968503937
I13: TOLERENCE | J13: 5 | K13: %
B14: Thou | C14: 4 | D14: = | E14: Milimetres | F14: =C14*25.4/1000 -> 0.1016
I15: TOTAL
B16: Milimetres | C16: 6.6 | D16: = | E16: Thou | F16: =C16/25.4*1000 -> 259.8425197
I17: MAX. | J17: =J11/100*J13+J11 -> 1.68 | K17: mm
B18: Thou | C18: 5 | D18: = | E18: Microns | F18: =C18*25.4 -> 127
I19: MIN. | J19: =J11-(J11/100*J13) -> 1.52 | K19: mm
B20: Microns | C20: 18 | D20: = | E20: Thou | F20: =C20/25.4 -> 0.7086614173
B22: Copper Thickness
B24: Thou | C24: 0.72 | D24: = | E24: Oz | F24: =C24/1.44 -> 0.5
B26: Oz | C26: 0.5 | D26: = | E26: Thou | F26: =1.44*C26 -> 0.72
K36: Designed
K37: By

Sheet Matched Length
A1: 1
M2: Matched Length Calculator
E5: Select Units
G6: mm | T6: Component | BC6: mm
S7: 1.1 | V7: =G6 -> mm | BC7: Thou
BC8: Microns
B11: Type in values for | K11: A | AF11: B | AT11: TOTAL
B12: Longest Signal | K12: 6.7 | N12: =G6 -> mm | AF12: 128 | AI12: =G6 -> mm | AT12: =K12+S7+AF12 -> 135.8 | AW12: =G6 -> mm
D20: Name | Q20: Name | W20: Input | AC20: =S7 -> 1.1 | AF20: Result
B21: NET A | K21: NET B | W21: A | AF21: B | AM21: TOTAL
B22: CLK5 | K22: CLK5 | W22: =K12 -> 6.7 | AF22: =AF12 -> 128 | AM22: =AT12 -> 135.8 | AP22: =G6 -> mm
B23: CLK0 | K23: CLK0 | W23: 5.12 | AF23: =IF(W23="","",AM23-S7-W23) -> 129.58 | AM23: =IF(W23="","",AT12) -> 135.8 | AP23: =G6 -> mm
B24: CLK1 | K24: CLK1 | W24: 8.94 | AF24: =IF(W24="","",AM24-S7-W24) -> 125.76 | AM24: =IF(W24="","",AT12) -> 135.8 | AP24: =G6 -> mm
B25: CLK2 | K25: CLK2 | W25: 5.73 | AF25: =IF(W25="","",AM25-S7-W25) -> 128.97 | AM25: =IF(W25="","",AT12) -> 135.8 | AP25: =G6 -> mm
B26: CLK3 | K26: CLK3 | W26: 4.13 | AF26: =IF(W26="","",AM26-S7-W26) -> 130.57 | AM26: =IF(W26="","",AT12) -> 135.8 | AP26: =G6 -> mm
B27: CLK4 | K27: CLK4 | W27: 6.1 | AF27: =IF(W27="","",AM27-S7-W27) -> 128.6 | AM27: =IF(W27="","",AT12) -> 135.8 | AP27: =G6 -> mm
B28: CLK6 | K28: CLK6 | W28: 5.95 | AF28: =IF(W28="","",AM28-S7-W28) -> 128.75 | AM28: =IF(W28="","",AT12) -> 135.8 | AP28: =G6 -> mm
B29: CLK7 | K29: CLK7 | W29: 7.25 | AF29: =IF(W29="","",AM29-S7-W29) -> 127.45 | AM29: =IF(W29="","",AT12) -> 135.8 | AP29: =G6 -> mm
AF30: =IF(W30="","",AM30-S7-W30) ->  | AM30: =IF(W30="","",AT12) ->  | AP30: =G6 -> mm
AF31: =IF(W31="","",AM31-S7-W31) ->  | AM31: =IF(W31="","",AT12) ->  | AP31: =G6 -> mm
B32: Type in the vaue for the longest matched length signal in the diagram the input A for each of the following nets.
